Department family,Entity,Date,Expense type,Expense area,Supplier,Transaction number,Amount
Department of Health,Leicestershire Partnership NHS Trust,02/05/23,Catering - Patient - Food,"Bradgate Unit (including Glenvale day Unit) (P7, LPT)",TILLERY VALLEY FOODS LTD,W/C280423,15809.56
Department of Health,Leicestershire Partnership NHS Trust,02/05/23,Catering - Patient - Food,"Coalville Community Hospital (P138, LPT)",TILLERY VALLEY FOODS LTD,W/C280423,3331.76
Department of Health,Leicestershire Partnership NHS Trust,02/05/23,Catering - Patient - Food,"Evington Centre (P6, LPT)",TILLERY VALLEY FOODS LTD,W/C280423,4848.55
Department of Health,Leicestershire Partnership NHS Trust,02/05/23,Catering - Patient - Food,"Hinckley and Bosworth Community Hospital (Sunnyside) (P133, LPT)",TILLERY VALLEY FOODS LTD,W/C280423,1126.26
Department of Health,Leicestershire Partnership NHS Trust,02/05/23,Catering - Patient - Food,"Loughborough Hospital (P136, LPT)",TILLERY VALLEY FOODS LTD,W/C280423,1705.83
Department of Health,Leicestershire Partnership NHS Trust,02/05/23,Catering - Patient - Food,"Rutland Memorial Hospital (P134, LPT)",TILLERY VALLEY FOODS LTD,W/C280423,1544.49
Department of Health,Leicestershire Partnership NHS Trust,02/05/23,Catering - Patient - Food,"Stewart House (P61, LPT)",TILLERY VALLEY FOODS LTD,W/C280423,782.79
Department of Health,Leicestershire Partnership NHS Trust,02/05/23,Catering - Patient - Food,"The Agnes Unit (AKA Assessment and Treatment Centre) (P85, LPT)",TILLERY VALLEY FOODS LTD,W/C280423,1635.85
Department of Health,Leicestershire Partnership NHS Trust,02/05/23,Catering - Patient - Food,"The Willows - Cordelia Close (P22, LPT)",TILLERY VALLEY FOODS LTD,W/C280423,2362.44
Department of Health,Leicestershire Partnership NHS Trust,02/05/23,Photocopying,Estates & Facilities Central,LEXMARK INTERNATIONAL LTD,900650305528,32043.37
Department of Health,Leicestershire Partnership NHS Trust,02/05/23,Computer Software,HIS,INSIGHT DIRECT (UK) LTD,2100568325,67098.00
Department of Health,Leicestershire Partnership NHS Trust,02/05/23,Crs_NHS_LT1y -Resus Inventory Supplied.,Balance Sheet Collection,SUPPLY CHAIN CO LTD,1124019872,37860.51
Department of Health,Leicestershire Partnership NHS Trust,02/05/23,Rates,"Syston Health Centre (New Building) (P127, LPT)",THE COUNTY PRACTICE,2023/2024RATES,25519.72
Department of Health,Leicestershire Partnership NHS Trust,02/05/23,External Data Processing / Storage,Records & information Governance,L&R STORAGE,CV408,56514.99
Department of Health,Leicestershire Partnership NHS Trust,02/05/23,External Data Processing / Storage,Records & information Governance,L&R STORAGE,CV407,75146.22
Department of Health,Leicestershire Partnership NHS Trust,03/05/23,FAR - Revaluation Depreciation,Balance Sheet Collection,TUSKER,74940,20.00
Department of Health,Leicestershire Partnership NHS Trust,03/05/23,Payroll Deductions -Salary Sacrifice Cars Scheme,Balance Sheet Collection,TUSKER,74940,42297.30
Department of Health,Leicestershire Partnership NHS Trust,03/05/23,Healthcare Services / Recharges from Non-NHS Bodies,Adult Eating Disorder Collaborative,PRIORY GROUP,301APR23LECAEDA,97471.56
Department of Health,Leicestershire Partnership NHS Trust,03/05/23,HR / Payroll Services,HR Employment Services,LINCOLNSHIRE PART NHSFT(RP7),L0000809,34400.00
Department of Health,Leicestershire Partnership NHS Trust,03/05/23,Legal Fees,Chief Executives Office,CARE QUALITY COMM,43326188,243556.00
Department of Health,Leicestershire Partnership NHS Trust,04/05/23,NURSE - BAND 2 - AGENCY,Beechwood Ward,HCL NURSING,HNSI0001325,7835.09
Department of Health,Leicestershire Partnership NHS Trust,04/05/23,NURSE - BAND 5 - AGENCY,Beechwood Ward,HCL NURSING,HNSI0001325,2481.49
Department of Health,Leicestershire Partnership NHS Trust,04/05/23,NURSE - BAND 2 - AGENCY,CHS Surge Ward,HCL NURSING,HNSI0001325,9135.87
Department of Health,Leicestershire Partnership NHS Trust,04/05/23,NURSE - BAND 5 - AGENCY,CHS Surge Ward,HCL NURSING,HNSI0001325,8670.19
Department of Health,Leicestershire Partnership NHS Trust,04/05/23,NURSE - BAND 5 - AGENCY,City Planned Care - East,HCL NURSING,HNSI0001325,13172.18
Department of Health,Leicestershire Partnership NHS Trust,04/05/23,NURSE - BAND 5 - AGENCY,City Planned Care - West,HCL NURSING,HNSI0001325,7930.73
Department of Health,Leicestershire Partnership NHS Trust,04/05/23,NURSE - BAND 2 - AGENCY,Clarendon Ward,HCL NURSING,HNSI0001325,10336.33
Department of Health,Leicestershire Partnership NHS Trust,04/05/23,NURSE - BAND 5 - AGENCY,Clarendon Ward,HCL NURSING,HNSI0001325,804.44
Department of Health,Leicestershire Partnership NHS Trust,04/05/23,NURSE - BAND 2 - AGENCY,Coalville Snibston Ward,HCL NURSING,HNSI0001325,10033.87
Department of Health,Leicestershire Partnership NHS Trust,04/05/23,NURSE - BAND 5 - AGENCY,Coalville Snibston Ward,HCL NURSING,HNSI0001325,2368.84
Department of Health,Leicestershire Partnership NHS Trust,04/05/23,NURSE - BAND 2 - AGENCY,Coalville Ward 2,HCL NURSING,HNSI0001325,6642.13
Department of Health,Leicestershire Partnership NHS Trust,04/05/23,NURSE - BAND 5 - AGENCY,Coalville Ward 2,HCL NURSING,HNSI0001325,3074.67
Department of Health,Leicestershire Partnership NHS Trust,04/05/23,NURSE - BAND 2 - AGENCY,Dalgliesh Ward,HCL NURSING,HNSI0001325,270.49
Department of Health,Leicestershire Partnership NHS Trust,04/05/23,NURSE - BAND 5 - AGENCY,Dalgliesh Ward,HCL NURSING,HNSI0001325,1558.55
Department of Health,Leicestershire Partnership NHS Trust,04/05/23,NURSE - BAND 2 - AGENCY,H&B Comm Hosp East Ward,HCL NURSING,HNSI0001325,11470.23
Department of Health,Leicestershire Partnership NHS Trust,04/05/23,NURSE - BAND 5 - AGENCY,H&B Comm Hosp East Ward,HCL NURSING,HNSI0001325,11402.65
Department of Health,Leicestershire Partnership NHS Trust,04/05/23,NURSE - BAND 2 - AGENCY,H&B Comm Hosp North Ward,HCL NURSING,HNSI0001325,5739.66
Department of Health,Leicestershire Partnership NHS Trust,04/05/23,NURSE - BAND 5 - AGENCY,H&B Comm Hosp North Ward,HCL NURSING,HNSI0001325,3149.42
Department of Health,Leicestershire Partnership NHS Trust,04/05/23,NURSE - BAND 2 - AGENCY,Lough Swithland Ward,HCL NURSING,HNSI0001325,3191.06
Department of Health,Leicestershire Partnership NHS Trust,04/05/23,NURSE - BAND 2 - AGENCY,Non Recurrent 2012/13,HCL NURSING,HNSI0001325,307.23
Department of Health,Leicestershire Partnership NHS Trust,04/05/23,NURSE - BAND 5 - AGENCY,Non Recurrent 2012/13,HCL NURSING,HNSI0001325,1344.66
Department of Health,Leicestershire Partnership NHS Trust,04/05/23,NURSE - BAND 2 - AGENCY,Rutland Ward Nursing,HCL NURSING,HNSI0001325,4688.24
Department of Health,Leicestershire Partnership NHS Trust,04/05/23,NURSE - BAND 2 - AGENCY,St Lukes Stroke Ward,HCL NURSING,HNSI0001325,6037.63
Department of Health,Leicestershire Partnership NHS Trust,04/05/23,NURSE - BAND 5 - AGENCY,St Lukes Stroke Ward,HCL NURSING,HNSI0001325,1632.54
Department of Health,Leicestershire Partnership NHS Trust,04/05/23,NURSE - BAND 2 - AGENCY,St Lukes Ward 3,HCL NURSING,HNSI0001325,2964.01
Department of Health,Leicestershire Partnership NHS Trust,04/05/23,NURSE - BAND 5 - AGENCY,St Lukes Ward 3,HCL NURSING,HNSI0001325,391.17
Department of Health,Leicestershire Partnership NHS Trust,04/05/23,Contract : Accomodation,Crisis House and Cafe,TURNING POINT,SI-TPS-00045236,102807.16
Department of Health,Leicestershire Partnership NHS Trust,05/05/23,Lease Rents (IFRS16),"St Peters Health Center (Part 1st and 2nd floors) (P66, LPT)",LEICESTER LIFT CO,LEP1-SI1232,34244.84
Department of Health,Leicestershire Partnership NHS Trust,05/05/23,WIP Project Not in BS - Buildings excl Dwellings,Work in Progress,TILBURY DOUGLAS CONSTRUCTION LTD,23050039,41256.95
Department of Health,Leicestershire Partnership NHS Trust,05/05/23,Payroll Deductions -Home Electronics 79 Apr 23,Balance Sheet Collection,SME HCI LTD,145365,24752.40
Department of Health,Leicestershire Partnership NHS Trust,05/05/23,Unitary Payment,"The Agnes Unit (AKA Assessment and Treatment Centre) (P85, LPT)",ARDEN PARTNERSHIP (LEICESTER),SI0121,144249.75
Department of Health,Leicestershire Partnership NHS Trust,09/05/23,NURSE - BAND 5 - AGENCY,AMH - Central Access Point,HCL NURSING,HNSI0001320,1064.89
Department of Health,Leicestershire Partnership NHS Trust,09/05/23,Nurse - Band 6 -Agency,AMH - Central Access Point,HCL NURSING,HNSI0001320,4498.63
Department of Health,Leicestershire Partnership NHS Trust,09/05/23,Nurse - Band 7 - Agency,Adult County South Leicestershire CMHT,HCL NURSING,HNSI0001320,1069.97
Department of Health,Leicestershire Partnership NHS Trust,09/05/23,NURSE - BAND 2 - AGENCY,Agnes Unit,HCL NURSING,HNSI0001320,22734.66
Department of Health,Leicestershire Partnership NHS Trust,09/05/23,NURSE - BAND 5 - AGENCY,Agnes Unit,HCL NURSING,HNSI0001320,27326.20
Department of Health,Leicestershire Partnership NHS Trust,09/05/23,Nurse - Band 7 - Agency,Agnes Unit,HCL NURSING,HNSI0001320,3769.70
Department of Health,Leicestershire Partnership NHS Trust,09/05/23,NURSE - BAND 2 - AGENCY,Ashby Ward (Bradgate Unit),HCL NURSING,HNSI0001320,2707.39
Department of Health,Leicestershire Partnership NHS Trust,09/05/23,NURSE - BAND 5 - AGENCY,Ashby Ward (Bradgate Unit),HCL NURSING,HNSI0001320,12420.96
Department of Health,Leicestershire Partnership NHS Trust,09/05/23,NURSE - BAND 2 - AGENCY,Aston Ward Bradgate Unit (Prev Welford),HCL NURSING,HNSI0001320,2763.58
Department of Health,Leicestershire Partnership NHS Trust,09/05/23,NURSE - BAND 5 - AGENCY,Aston Ward Bradgate Unit (Prev Welford),HCL NURSING,HNSI0001320,1265.76
Department of Health,Leicestershire Partnership NHS Trust,09/05/23,NURSE - BAND 2 - AGENCY,Beaumont Ward - Bradgate Unit,HCL NURSING,HNSI0001320,1571.28
Department of Health,Leicestershire Partnership NHS Trust,09/05/23,NURSE - BAND 5 - AGENCY,Beaumont Ward - Bradgate Unit,HCL NURSING,HNSI0001320,11522.51
Department of Health,Leicestershire Partnership NHS Trust,09/05/23,NURSE - BAND 2 - AGENCY,Belvoir Psychiatric Intensive Care Unit,HCL NURSING,HNSI0001320,5299.58
Department of Health,Leicestershire Partnership NHS Trust,09/05/23,NURSE - BAND 5 - AGENCY,Belvoir Psychiatric Intensive Care Unit,HCL NURSING,HNSI0001320,9499.15
Department of Health,Leicestershire Partnership NHS Trust,09/05/23,NURSE - BAND 2 - AGENCY,Bosworth Ward - Bradgate Unit,HCL NURSING,HNSI0001320,988.40
Department of Health,Leicestershire Partnership NHS Trust,09/05/23,NURSE - BAND 5 - AGENCY,Bosworth Ward - Bradgate Unit,HCL NURSING,HNSI0001320,5721.88
Department of Health,Leicestershire Partnership NHS Trust,09/05/23,NURSE - BAND 2 - AGENCY,Cedar (Willows),HCL NURSING,HNSI0001320,1029.21
Department of Health,Leicestershire Partnership NHS Trust,09/05/23,Nurse - Band 6 -Agency,City West CMHT MHSOP,HCL NURSING,HNSI0001320,837.00
Department of Health,Leicestershire Partnership NHS Trust,09/05/23,NURSE - BAND 2 - AGENCY,Coleman Ward,HCL NURSING,HNSI0001320,4981.92
Department of Health,Leicestershire Partnership NHS Trust,09/05/23,NURSE - BAND 5 - AGENCY,Coleman Ward,HCL NURSING,HNSI0001320,6082.06
Department of Health,Leicestershire Partnership NHS Trust,09/05/23,NURSE - BAND 5 - AGENCY,Crisis Resolution,HCL NURSING,HNSI0001320,2089.08
Department of Health,Leicestershire Partnership NHS Trust,09/05/23,NURSE - BAND 2 - AGENCY,Griffin Ward (HPC),HCL NURSING,HNSI0001320,11701.22
Department of Health,Leicestershire Partnership NHS Trust,09/05/23,NURSE - BAND 5 - AGENCY,Griffin Ward (HPC),HCL NURSING,HNSI0001320,8475.20
Department of Health,Leicestershire Partnership NHS Trust,09/05/23,NURSE - BAND 2 - AGENCY,Gwendolen Ward,HCL NURSING,HNSI0001320,3492.75
Department of Health,Leicestershire Partnership NHS Trust,09/05/23,NURSE - BAND 5 - AGENCY,Gwendolen Ward,HCL NURSING,HNSI0001320,5119.37
Department of Health,Leicestershire Partnership NHS Trust,09/05/23,NURSE - BAND 2 - AGENCY,Heather Ward,HCL NURSING,HNSI0001320,681.17
Department of Health,Leicestershire Partnership NHS Trust,09/05/23,NURSE - BAND 5 - AGENCY,Heather Ward,HCL NURSING,HNSI0001320,4549.70
Department of Health,Leicestershire Partnership NHS Trust,09/05/23,NURSE - BAND 2 - AGENCY,Kirby Ward,HCL NURSING,HNSI0001320,5422.14
Department of Health,Leicestershire Partnership NHS Trust,09/05/23,NURSE - BAND 5 - AGENCY,Kirby Ward,HCL NURSING,HNSI0001320,1313.61
Department of Health,Leicestershire Partnership NHS Trust,09/05/23,NURSE - BAND 2 - AGENCY,Maple Ward,HCL NURSING,HNSI0001320,1004.96
Department of Health,Leicestershire Partnership NHS Trust,09/05/23,NURSE - BAND 5 - AGENCY,Maple Ward,HCL NURSING,HNSI0001320,525.35
Department of Health,Leicestershire Partnership NHS Trust,09/05/23,Nurse - Band 6 -Agency,Mental Health Liaison Team,HCL NURSING,HNSI0001320,1245.37
Department of Health,Leicestershire Partnership NHS Trust,09/05/23,NURSE - BAND 2 - AGENCY,Mill Lodge,HCL NURSING,HNSI0001320,2939.01
Department of Health,Leicestershire Partnership NHS Trust,09/05/23,NURSE - BAND 5 - AGENCY,Mill Lodge,HCL NURSING,HNSI0001320,2115.04
Department of Health,Leicestershire Partnership NHS Trust,09/05/23,NURSE - BAND 2 - AGENCY,Phoenix Ward (HPC),HCL NURSING,HNSI0001320,254.23
Department of Health,Leicestershire Partnership NHS Trust,09/05/23,NURSE - BAND 5 - AGENCY,Phoenix Ward (HPC),HCL NURSING,HNSI0001320,2582.93
Department of Health,Leicestershire Partnership NHS Trust,09/05/23,NURSE - BAND 2 - AGENCY,Place Of Safety Assessment Unit,HCL NURSING,HNSI0001320,498.23
Department of Health,Leicestershire Partnership NHS Trust,09/05/23,NURSE - BAND 5 - AGENCY,Place Of Safety Assessment Unit,HCL NURSING,HNSI0001320,4564.86
Department of Health,Leicestershire Partnership NHS Trust,09/05/23,NURSE - BAND 5 - AGENCY,Stewart House,HCL NURSING,HNSI0001320,1189.50
Department of Health,Leicestershire Partnership NHS Trust,09/05/23,NURSE - BAND 2 - AGENCY,Sycamore (Willows),HCL NURSING,HNSI0001320,1228.54
Department of Health,Leicestershire Partnership NHS Trust,09/05/23,NURSE - BAND 2 - AGENCY,Thornton Ward - Bradgate Unit,HCL NURSING,HNSI0001320,552.02
Department of Health,Leicestershire Partnership NHS Trust,09/05/23,NURSE - BAND 5 - AGENCY,Thornton Ward - Bradgate Unit,HCL NURSING,HNSI0001320,1004.20
Department of Health,Leicestershire Partnership NHS Trust,09/05/23,NURSE - BAND 5 - AGENCY,AMH - Central Access Point,HCL NURSING,HNSI0001324,1559.23
Department of Health,Leicestershire Partnership NHS Trust,09/05/23,Nurse - Band 6 -Agency,AMH - Central Access Point,HCL NURSING,HNSI0001324,2421.03
Department of Health,Leicestershire Partnership NHS Trust,09/05/23,NURSE - BAND 2 - AGENCY,Agnes Unit,HCL NURSING,HNSI0001324,19221.40
Department of Health,Leicestershire Partnership NHS Trust,09/05/23,NURSE - BAND 5 - AGENCY,Agnes Unit,HCL NURSING,HNSI0001324,23386.41
Department of Health,Leicestershire Partnership NHS Trust,09/05/23,Nurse - Band 7 - Agency,Agnes Unit,HCL NURSING,HNSI0001324,1626.76
Department of Health,Leicestershire Partnership NHS Trust,09/05/23,NURSE - BAND 2 - AGENCY,Ashby Ward (Bradgate Unit),HCL NURSING,HNSI0001324,7740.74
Department of Health,Leicestershire Partnership NHS Trust,09/05/23,NURSE - BAND 5 - AGENCY,Ashby Ward (Bradgate Unit),HCL NURSING,HNSI0001324,9615.42
Department of Health,Leicestershire Partnership NHS Trust,09/05/23,NURSE - BAND 2 - AGENCY,Aston Ward Bradgate Unit (Prev Welford),HCL NURSING,HNSI0001324,5833.62
Department of Health,Leicestershire Partnership NHS Trust,09/05/23,NURSE - BAND 5 - AGENCY,Aston Ward Bradgate Unit (Prev Welford),HCL NURSING,HNSI0001324,3968.07
Department of Health,Leicestershire Partnership NHS Trust,09/05/23,NURSE - BAND 2 - AGENCY,Beaumont Ward - Bradgate Unit,HCL NURSING,HNSI0001324,5378.94
Department of Health,Leicestershire Partnership NHS Trust,09/05/23,NURSE - BAND 5 - AGENCY,Beaumont Ward - Bradgate Unit,HCL NURSING,HNSI0001324,6312.79
Department of Health,Leicestershire Partnership NHS Trust,09/05/23,NURSE - BAND 2 - AGENCY,Belvoir Psychiatric Intensive Care Unit,HCL NURSING,HNSI0001324,3864.47
Department of Health,Leicestershire Partnership NHS Trust,09/05/23,NURSE - BAND 5 - AGENCY,Belvoir Psychiatric Intensive Care Unit,HCL NURSING,HNSI0001324,10661.98
Department of Health,Leicestershire Partnership NHS Trust,09/05/23,NURSE - BAND 2 - AGENCY,Bosworth Ward - Bradgate Unit,HCL NURSING,HNSI0001324,617.53
Department of Health,Leicestershire Partnership NHS Trust,09/05/23,NURSE - BAND 5 - AGENCY,Bosworth Ward - Bradgate Unit,HCL NURSING,HNSI0001324,2504.54
Department of Health,Leicestershire Partnership NHS Trust,09/05/23,NURSE - BAND 2 - AGENCY,Cedar (Willows),HCL NURSING,HNSI0001324,1360.82
Department of Health,Leicestershire Partnership NHS Trust,09/05/23,NURSE - BAND 5 - AGENCY,Cedar (Willows),HCL NURSING,HNSI0001324,571.85
Department of Health,Leicestershire Partnership NHS Trust,09/05/23,Nurse - Band 6 -Agency,City West CMHT MHSOP,HCL NURSING,HNSI0001324,837.00
Department of Health,Leicestershire Partnership NHS Trust,09/05/23,NURSE - BAND 2 - AGENCY,Coleman Ward,HCL NURSING,HNSI0001324,2225.21
Department of Health,Leicestershire Partnership NHS Trust,09/05/23,NURSE - BAND 5 - AGENCY,Coleman Ward,HCL NURSING,HNSI0001324,4535.98
Department of Health,Leicestershire Partnership NHS Trust,09/05/23,NURSE - BAND 5 - AGENCY,Crisis Resolution,HCL NURSING,HNSI0001324,985.39
Department of Health,Leicestershire Partnership NHS Trust,09/05/23,NURSE - BAND 2 - AGENCY,Griffin Ward (HPC),HCL NURSING,HNSI0001324,7330.43
Department of Health,Leicestershire Partnership NHS Trust,09/05/23,NURSE - BAND 5 - AGENCY,Griffin Ward (HPC),HCL NURSING,HNSI0001324,6557.63
Department of Health,Leicestershire Partnership NHS Trust,09/05/23,NURSE - BAND 2 - AGENCY,Gwendolen Ward,HCL NURSING,HNSI0001324,1462.85
Department of Health,Leicestershire Partnership NHS Trust,09/05/23,NURSE - BAND 5 - AGENCY,Gwendolen Ward,HCL NURSING,HNSI0001324,2747.68
Department of Health,Leicestershire Partnership NHS Trust,09/05/23,NURSE - BAND 2 - AGENCY,Heather Ward,HCL NURSING,HNSI0001324,1720.14
Department of Health,Leicestershire Partnership NHS Trust,09/05/23,NURSE - BAND 5 - AGENCY,Heather Ward,HCL NURSING,HNSI0001324,6025.18
Department of Health,Leicestershire Partnership NHS Trust,09/05/23,NURSE - BAND 2 - AGENCY,Kirby Ward,HCL NURSING,HNSI0001324,9494.05
Department of Health,Leicestershire Partnership NHS Trust,09/05/23,NURSE - BAND 5 - AGENCY,Kirby Ward,HCL NURSING,HNSI0001324,1730.45
Department of Health,Leicestershire Partnership NHS Trust,09/05/23,NURSE - BAND 2 - AGENCY,Maple Ward,HCL NURSING,HNSI0001324,1740.69
Department of Health,Leicestershire Partnership NHS Trust,09/05/23,NURSE - BAND 5 - AGENCY,Maple Ward,HCL NURSING,HNSI0001324,1612.05
Department of Health,Leicestershire Partnership NHS Trust,09/05/23,NURSE - BAND 2 - AGENCY,Mill Lodge,HCL NURSING,HNSI0001324,745.82
Department of Health,Leicestershire Partnership NHS Trust,09/05/23,NURSE - BAND 5 - AGENCY,Mill Lodge,HCL NURSING,HNSI0001324,2183.90
Department of Health,Leicestershire Partnership NHS Trust,09/05/23,NURSE - BAND 2 - AGENCY,Phoenix Ward (HPC),HCL NURSING,HNSI0001324,714.30
Department of Health,Leicestershire Partnership NHS Trust,09/05/23,NURSE - BAND 5 - AGENCY,Phoenix Ward (HPC),HCL NURSING,HNSI0001324,8136.85
Department of Health,Leicestershire Partnership NHS Trust,09/05/23,NURSE - BAND 2 - AGENCY,Place Of Safety Assessment Unit,HCL NURSING,HNSI0001324,1013.35
Department of Health,Leicestershire Partnership NHS Trust,09/05/23,NURSE - BAND 5 - AGENCY,Place Of Safety Assessment Unit,HCL NURSING,HNSI0001324,4206.59
Department of Health,Leicestershire Partnership NHS Trust,09/05/23,NURSE - BAND 5 - AGENCY,Stewart House,HCL NURSING,HNSI0001324,1348.62
Department of Health,Leicestershire Partnership NHS Trust,09/05/23,NURSE - BAND 2 - AGENCY,Sycamore (Willows),HCL NURSING,HNSI0001324,1452.42
Department of Health,Leicestershire Partnership NHS Trust,09/05/23,NURSE - BAND 5 - AGENCY,Sycamore (Willows),HCL NURSING,HNSI0001324,1040.20
Department of Health,Leicestershire Partnership NHS Trust,09/05/23,NURSE - BAND 2 - AGENCY,Thornton Ward - Bradgate Unit,HCL NURSING,HNSI0001324,513.07
Department of Health,Leicestershire Partnership NHS Trust,09/05/23,NURSE - BAND 5 - AGENCY,Thornton Ward - Bradgate Unit,HCL NURSING,HNSI0001324,2012.43
Department of Health,Leicestershire Partnership NHS Trust,09/05/23,Nurse - Band 6 -Agency,CAMHS HUB / CAP,HCL WORKFORCE SOLUTIONS,HWSI0001703,8494.90
Department of Health,Leicestershire Partnership NHS Trust,09/05/23,Nurse - Band 6 -Agency,CAMHS Waiting List Monies,HCL WORKFORCE SOLUTIONS,HWSI0001703,13362.85
Department of Health,Leicestershire Partnership NHS Trust,09/05/23,Nurse - Band 6 -Agency,Crisis Response and Home Treatment,HCL WORKFORCE SOLUTIONS,HWSI0001703,1934.85
Department of Health,Leicestershire Partnership NHS Trust,09/05/23,Nurse - Band 6 -Agency,CAMHS HUB / CAP,HCL WORKFORCE SOLUTIONS,HWSI0001669,10004.82
Department of Health,Leicestershire Partnership NHS Trust,09/05/23,Nurse - Band 6 -Agency,CAMHS Waiting List Monies,HCL WORKFORCE SOLUTIONS,HWSI0001669,17024.75
Department of Health,Leicestershire Partnership NHS Trust,09/05/23,Nurse - Band 6 -Agency,Crisis Response and Home Treatment,HCL WORKFORCE SOLUTIONS,HWSI0001669,2309.72
Department of Health,Leicestershire Partnership NHS Trust,09/05/23,NURSE - BAND 5 - AGENCY,AMH - Central Access Point,HCL NURSING,HNSI0001328,281.96
Department of Health,Leicestershire Partnership NHS Trust,09/05/23,Nurse - Band 6 -Agency,AMH - Central Access Point,HCL NURSING,HNSI0001328,4342.41
Department of Health,Leicestershire Partnership NHS Trust,09/05/23,NURSE - BAND 2 - AGENCY,Agnes Unit,HCL NURSING,HNSI0001328,18680.84
Department of Health,Leicestershire Partnership NHS Trust,09/05/23,NURSE - BAND 5 - AGENCY,Agnes Unit,HCL NURSING,HNSI0001328,25162.79
Department of Health,Leicestershire Partnership NHS Trust,09/05/23,Nurse - Band 7 - Agency,Agnes Unit,HCL NURSING,HNSI0001328,1938.98
Department of Health,Leicestershire Partnership NHS Trust,09/05/23,NURSE - BAND 2 - AGENCY,Ashby Ward (Bradgate Unit),HCL NURSING,HNSI0001328,2909.49
Department of Health,Leicestershire Partnership NHS Trust,09/05/23,NURSE - BAND 5 - AGENCY,Ashby Ward (Bradgate Unit),HCL NURSING,HNSI0001328,14740.41
Department of Health,Leicestershire Partnership NHS Trust,09/05/23,NURSE - BAND 2 - AGENCY,Aston Ward Bradgate Unit (Prev Welford),HCL NURSING,HNSI0001328,5616.10
Department of Health,Leicestershire Partnership NHS Trust,09/05/23,NURSE - BAND 5 - AGENCY,Aston Ward Bradgate Unit (Prev Welford),HCL NURSING,HNSI0001328,1575.61
Department of Health,Leicestershire Partnership NHS Trust,09/05/23,NURSE - BAND 2 - AGENCY,Beaumont Ward - Bradgate Unit,HCL NURSING,HNSI0001328,5664.92
Department of Health,Leicestershire Partnership NHS Trust,09/05/23,NURSE - BAND 5 - AGENCY,Beaumont Ward - Bradgate Unit,HCL NURSING,HNSI0001328,9480.20
Department of Health,Leicestershire Partnership NHS Trust,09/05/23,NURSE - BAND 2 - AGENCY,Belvoir Psychiatric Intensive Care Unit,HCL NURSING,HNSI0001328,6480.72
Department of Health,Leicestershire Partnership NHS Trust,09/05/23,NURSE - BAND 5 - AGENCY,Belvoir Psychiatric Intensive Care Unit,HCL NURSING,HNSI0001328,7799.94
Department of Health,Leicestershire Partnership NHS Trust,09/05/23,NURSE - BAND 2 - AGENCY,Bosworth Ward - Bradgate Unit,HCL NURSING,HNSI0001328,2297.70
Department of Health,Leicestershire Partnership NHS Trust,09/05/23,NURSE - BAND 5 - AGENCY,Bosworth Ward - Bradgate Unit,HCL NURSING,HNSI0001328,1806.27
Department of Health,Leicestershire Partnership NHS Trust,09/05/23,NURSE - BAND 2 - AGENCY,Cedar (Willows),HCL NURSING,HNSI0001328,739.93
Department of Health,Leicestershire Partnership NHS Trust,09/05/23,NURSE - BAND 5 - AGENCY,Cedar (Willows),HCL NURSING,HNSI0001328,291.46
Department of Health,Leicestershire Partnership NHS Trust,09/05/23,Nurse - Band 6 -Agency,City West CMHT MHSOP,HCL NURSING,HNSI0001328,1046.25
Department of Health,Leicestershire Partnership NHS Trust,09/05/23,NURSE - BAND 2 - AGENCY,Coleman Ward,HCL NURSING,HNSI0001328,3607.10
Department of Health,Leicestershire Partnership NHS Trust,09/05/23,NURSE - BAND 5 - AGENCY,Coleman Ward,HCL NURSING,HNSI0001328,2216.03
Department of Health,Leicestershire Partnership NHS Trust,09/05/23,NURSE - BAND 5 - AGENCY,Crisis Resolution,HCL NURSING,HNSI0001328,4023.74
Department of Health,Leicestershire Partnership NHS Trust,09/05/23,NURSE - BAND 2 - AGENCY,Griffin Ward (HPC),HCL NURSING,HNSI0001328,4588.83
Department of Health,Leicestershire Partnership NHS Trust,09/05/23,NURSE - BAND 5 - AGENCY,Griffin Ward (HPC),HCL NURSING,HNSI0001328,4746.98
Department of Health,Leicestershire Partnership NHS Trust,09/05/23,NURSE - BAND 2 - AGENCY,Gwendolen Ward,HCL NURSING,HNSI0001328,941.37
Department of Health,Leicestershire Partnership NHS Trust,09/05/23,NURSE - BAND 5 - AGENCY,Gwendolen Ward,HCL NURSING,HNSI0001328,1431.43
Department of Health,Leicestershire Partnership NHS Trust,09/05/23,NURSE - BAND 2 - AGENCY,Heather Ward,HCL NURSING,HNSI0001328,3807.67
Department of Health,Leicestershire Partnership NHS Trust,09/05/23,NURSE - BAND 5 - AGENCY,Heather Ward,HCL NURSING,HNSI0001328,3098.10
Department of Health,Leicestershire Partnership NHS Trust,09/05/23,NURSE - BAND 2 - AGENCY,Kirby Ward,HCL NURSING,HNSI0001328,13016.05
Department of Health,Leicestershire Partnership NHS Trust,09/05/23,NURSE - BAND 5 - AGENCY,Kirby Ward,HCL NURSING,HNSI0001328,2375.37
Department of Health,Leicestershire Partnership NHS Trust,09/05/23,NURSE - BAND 2 - AGENCY,Maple Ward,HCL NURSING,HNSI0001328,1298.70
Department of Health,Leicestershire Partnership NHS Trust,09/05/23,NURSE - BAND 5 - AGENCY,Maple Ward,HCL NURSING,HNSI0001328,1403.24
Department of Health,Leicestershire Partnership NHS Trust,09/05/23,NURSE - BAND 2 - AGENCY,Mill Lodge,HCL NURSING,HNSI0001328,5951.24
Department of Health,Leicestershire Partnership NHS Trust,09/05/23,NURSE - BAND 5 - AGENCY,Mill Lodge,HCL NURSING,HNSI0001328,983.39
Department of Health,Leicestershire Partnership NHS Trust,09/05/23,NURSE - BAND 2 - AGENCY,Phoenix Ward (HPC),HCL NURSING,HNSI0001328,782.98
Department of Health,Leicestershire Partnership NHS Trust,09/05/23,NURSE - BAND 5 - AGENCY,Phoenix Ward (HPC),HCL NURSING,HNSI0001328,5703.02
Department of Health,Leicestershire Partnership NHS Trust,09/05/23,NURSE - BAND 2 - AGENCY,Place Of Safety Assessment Unit,HCL NURSING,HNSI0001328,1887.83
Department of Health,Leicestershire Partnership NHS Trust,09/05/23,NURSE - BAND 5 - AGENCY,Place Of Safety Assessment Unit,HCL NURSING,HNSI0001328,4239.59
Department of Health,Leicestershire Partnership NHS Trust,09/05/23,NURSE - BAND 5 - AGENCY,Stewart House,HCL NURSING,HNSI0001328,836.00
Department of Health,Leicestershire Partnership NHS Trust,09/05/23,NURSE - BAND 2 - AGENCY,Sycamore (Willows),HCL NURSING,HNSI0001328,1495.80
Department of Health,Leicestershire Partnership NHS Trust,09/05/23,NURSE - BAND 2 - AGENCY,Thornton Ward - Bradgate Unit,HCL NURSING,HNSI0001328,1698.23
Department of Health,Leicestershire Partnership NHS Trust,09/05/23,NURSE - BAND 5 - AGENCY,Thornton Ward - Bradgate Unit,HCL NURSING,HNSI0001328,1926.74
Department of Health,Leicestershire Partnership NHS Trust,09/05/23,NURSE - BAND 2 - AGENCY,CAMHS Inpatient Service,HCL NURSING,HNSI0001330,15513.86
Department of Health,Leicestershire Partnership NHS Trust,09/05/23,NURSE - BAND 5 - AGENCY,CAMHS Inpatient Service,HCL NURSING,HNSI0001330,5384.02
Department of Health,Leicestershire Partnership NHS Trust,09/05/23,NURSE - BAND 2 - AGENCY,CAMHS Learning Disabilities and Outreach Team,HCL NURSING,HNSI0001330,2227.29
Department of Health,Leicestershire Partnership NHS Trust,09/05/23,Nurse - Band 6 -Agency,CAMHS Waiting List Monies,HCL NURSING,HNSI0001330,1875.41
Department of Health,Leicestershire Partnership NHS Trust,09/05/23,Nurse - Band 7 - Agency,CAMHS Waiting List Monies,HCL NURSING,HNSI0001330,4238.08
Department of Health,Leicestershire Partnership NHS Trust,09/05/23,NURSE - BAND 2 - AGENCY,Welford Ward (Prev Langley),HCL NURSING,HNSI0001330,2281.91
Department of Health,Leicestershire Partnership NHS Trust,09/05/23,NURSE - BAND 5 - AGENCY,Welford Ward (Prev Langley),HCL NURSING,HNSI0001330,2780.98
Department of Health,Leicestershire Partnership NHS Trust,09/05/23,NURSE - BAND 2 - AGENCY,CAMHS Inpatient Service,HCL NURSING,HNSI0001326,5976.05
Department of Health,Leicestershire Partnership NHS Trust,09/05/23,NURSE - BAND 5 - AGENCY,CAMHS Inpatient Service,HCL NURSING,HNSI0001326,5756.52
Department of Health,Leicestershire Partnership NHS Trust,09/05/23,NURSE - BAND 2 - AGENCY,CAMHS Learning Disabilities and Outreach Team,HCL NURSING,HNSI0001326,837.15
Department of Health,Leicestershire Partnership NHS Trust,09/05/23,NURSE - BAND 5 - AGENCY,CAMHS Waiting List Monies,HCL NURSING,HNSI0001326,2409.04
Department of Health,Leicestershire Partnership NHS Trust,09/05/23,Nurse - Band 7 - Agency,CAMHS Waiting List Monies,HCL NURSING,HNSI0001326,2547.77
Department of Health,Leicestershire Partnership NHS Trust,09/05/23,NURSE - BAND 2 - AGENCY,Welford Ward (Prev Langley),HCL NURSING,HNSI0001326,2667.33
Department of Health,Leicestershire Partnership NHS Trust,09/05/23,NURSE - BAND 5 - AGENCY,Welford Ward (Prev Langley),HCL NURSING,HNSI0001326,4401.45
Department of Health,Leicestershire Partnership NHS Trust,09/05/23,NURSE - BAND 2 - AGENCY,CAMHS Inpatient Service,HCL NURSING,HNSI0001322,9173.73
Department of Health,Leicestershire Partnership NHS Trust,09/05/23,NURSE - BAND 5 - AGENCY,CAMHS Inpatient Service,HCL NURSING,HNSI0001322,5669.41
Department of Health,Leicestershire Partnership NHS Trust,09/05/23,NURSE - BAND 2 - AGENCY,CAMHS Learning Disabilities and Outreach Team,HCL NURSING,HNSI0001322,1522.88
Department of Health,Leicestershire Partnership NHS Trust,09/05/23,NURSE - BAND 5 - AGENCY,CAMHS Waiting List Monies,HCL NURSING,HNSI0001322,2499.01
Department of Health,Leicestershire Partnership NHS Trust,09/05/23,Nurse - Band 7 - Agency,CAMHS Waiting List Monies,HCL NURSING,HNSI0001322,3238.40
Department of Health,Leicestershire Partnership NHS Trust,09/05/23,NURSE - BAND 2 - AGENCY,Welford Ward (Prev Langley),HCL NURSING,HNSI0001322,3378.68
Department of Health,Leicestershire Partnership NHS Trust,09/05/23,NURSE - BAND 5 - AGENCY,Welford Ward (Prev Langley),HCL NURSING,HNSI0001322,3347.09
Department of Health,Leicestershire Partnership NHS Trust,09/05/23,NURSE - BAND 2 - AGENCY,Beechwood Ward,HCL NURSING,HNSI0001329,9292.69
Department of Health,Leicestershire Partnership NHS Trust,09/05/23,NURSE - BAND 5 - AGENCY,Beechwood Ward,HCL NURSING,HNSI0001329,2585.15
Department of Health,Leicestershire Partnership NHS Trust,09/05/23,NURSE - BAND 2 - AGENCY,CHS Surge Ward,HCL NURSING,HNSI0001329,8468.15
Department of Health,Leicestershire Partnership NHS Trust,09/05/23,NURSE - BAND 5 - AGENCY,CHS Surge Ward,HCL NURSING,HNSI0001329,12695.55
Department of Health,Leicestershire Partnership NHS Trust,09/05/23,NURSE - BAND 5 - AGENCY,City Planned Care - East,HCL NURSING,HNSI0001329,12542.43
Department of Health,Leicestershire Partnership NHS Trust,09/05/23,NURSE - BAND 5 - AGENCY,City Planned Care - West,HCL NURSING,HNSI0001329,7407.49
Department of Health,Leicestershire Partnership NHS Trust,09/05/23,NURSE - BAND 2 - AGENCY,Clarendon Ward,HCL NURSING,HNSI0001329,10635.39
Department of Health,Leicestershire Partnership NHS Trust,09/05/23,NURSE - BAND 5 - AGENCY,Clarendon Ward,HCL NURSING,HNSI0001329,1318.30
Department of Health,Leicestershire Partnership NHS Trust,09/05/23,NURSE - BAND 2 - AGENCY,Coalville Snibston Ward,HCL NURSING,HNSI0001329,6108.76
Department of Health,Leicestershire Partnership NHS Trust,09/05/23,NURSE - BAND 5 - AGENCY,Coalville Snibston Ward,HCL NURSING,HNSI0001329,4207.82
Department of Health,Leicestershire Partnership NHS Trust,09/05/23,NURSE - BAND 2 - AGENCY,Coalville Ward 2,HCL NURSING,HNSI0001329,6991.79
Department of Health,Leicestershire Partnership NHS Trust,09/05/23,NURSE - BAND 5 - AGENCY,Coalville Ward 2,HCL NURSING,HNSI0001329,1937.60
Department of Health,Leicestershire Partnership NHS Trust,09/05/23,NURSE - BAND 2 - AGENCY,Dalgliesh Ward,HCL NURSING,HNSI0001329,7173.12
Department of Health,Leicestershire Partnership NHS Trust,09/05/23,NURSE - BAND 5 - AGENCY,Dalgliesh Ward,HCL NURSING,HNSI0001329,3201.59
Department of Health,Leicestershire Partnership NHS Trust,09/05/23,NURSE - BAND 5 - AGENCY,"East Planned Care - Oadby,Wigston & Harborough",HCL NURSING,HNSI0001329,1184.28
Department of Health,Leicestershire Partnership NHS Trust,09/05/23,NURSE - BAND 2 - AGENCY,H&B Comm Hosp East Ward,HCL NURSING,HNSI0001329,6499.71
Department of Health,Leicestershire Partnership NHS Trust,09/05/23,NURSE - BAND 5 - AGENCY,H&B Comm Hosp East Ward,HCL NURSING,HNSI0001329,7625.40
Department of Health,Leicestershire Partnership NHS Trust,09/05/23,NURSE - BAND 2 - AGENCY,H&B Comm Hosp North Ward,HCL NURSING,HNSI0001329,8082.63
Department of Health,Leicestershire Partnership NHS Trust,09/05/23,NURSE - BAND 5 - AGENCY,H&B Comm Hosp North Ward,HCL NURSING,HNSI0001329,1509.39
Department of Health,Leicestershire Partnership NHS Trust,09/05/23,NURSE - BAND 2 - AGENCY,Lough Swithland Ward,HCL NURSING,HNSI0001329,2243.08
Department of Health,Leicestershire Partnership NHS Trust,09/05/23,NURSE - BAND 2 - AGENCY,Non Recurrent 2012/13,HCL NURSING,HNSI0001329,297.55
Department of Health,Leicestershire Partnership NHS Trust,09/05/23,NURSE - BAND 5 - AGENCY,Non Recurrent 2012/13,HCL NURSING,HNSI0001329,182.11
Department of Health,Leicestershire Partnership NHS Trust,09/05/23,NURSE - BAND 2 - AGENCY,Rutland Ward Nursing,HCL NURSING,HNSI0001329,2518.16
Department of Health,Leicestershire Partnership NHS Trust,09/05/23,NURSE - BAND 5 - AGENCY,Rutland Ward Nursing,HCL NURSING,HNSI0001329,996.14
Department of Health,Leicestershire Partnership NHS Trust,09/05/23,NURSE - BAND 2 - AGENCY,St Lukes Stroke Ward,HCL NURSING,HNSI0001329,6214.07
Department of Health,Leicestershire Partnership NHS Trust,09/05/23,NURSE - BAND 5 - AGENCY,St Lukes Stroke Ward,HCL NURSING,HNSI0001329,1641.28
Department of Health,Leicestershire Partnership NHS Trust,09/05/23,NURSE - BAND 2 - AGENCY,St Lukes Ward 3,HCL NURSING,HNSI0001329,3138.32
Department of Health,Leicestershire Partnership NHS Trust,09/05/23,NURSE - BAND 5 - AGENCY,St Lukes Ward 3,HCL NURSING,HNSI0001329,1441.62
Department of Health,Leicestershire Partnership NHS Trust,10/05/23,WIP Project Not in BS - Buildings excl Dwellings,Work in Progress,TILBURY DOUGLAS CONSTRUCTION LTD,23050061,175899.78
Department of Health,Leicestershire Partnership NHS Trust,10/05/23,WIP Project Not in BS - Buildings excl Dwellings,Work in Progress,TILBURY DOUGLAS CONSTRUCTION LTD,23050062,54395.21
Department of Health,Leicestershire Partnership NHS Trust,10/05/23,WIP Project Not in BS - Buildings excl Dwellings,Work in Progress,TILBURY DOUGLAS CONSTRUCTION LTD,23050065,62004.04
Department of Health,Leicestershire Partnership NHS Trust,11/05/23,Nurse - Band 6 -Agency,AMH - Central Access Point,HCL WORKFORCE SOLUTIONS,HWSI0001719,8958.18
Department of Health,Leicestershire Partnership NHS Trust,11/05/23,Nurse - Band 6 -Agency,Adult City East CMHT - Merlyn Vaz,HCL WORKFORCE SOLUTIONS,HWSI0001719,2444.38
Department of Health,Leicestershire Partnership NHS Trust,11/05/23,Nurse - Band 6 -Agency,City East CMHT MHSOP,HCL WORKFORCE SOLUTIONS,HWSI0001719,1334.63
Department of Health,Leicestershire Partnership NHS Trust,11/05/23,Nurse - Band 6 -Agency,Crisis Resolution,HCL WORKFORCE SOLUTIONS,HWSI0001719,7917.83
Department of Health,Leicestershire Partnership NHS Trust,11/05/23,Nurse - Band 6 -Agency,Melton & Rutland CMHT MHSOP,HCL WORKFORCE SOLUTIONS,HWSI0001719,2670.78
Department of Health,Leicestershire Partnership NHS Trust,11/05/23,NURSE - BAND 2 - AGENCY,CAMHS Inpatient Service,HCL NURSING,HNSI0001339,36117.60
Department of Health,Leicestershire Partnership NHS Trust,11/05/23,NURSE - BAND 5 - AGENCY,CAMHS Inpatient Service,HCL NURSING,HNSI0001339,13226.19
Department of Health,Leicestershire Partnership NHS Trust,11/05/23,NURSE - BAND 2 - AGENCY,CAMHS Learning Disabilities and Outreach Team,HCL NURSING,HNSI0001339,4033.43
Department of Health,Leicestershire Partnership NHS Trust,11/05/23,Nurse - Band 6 -Agency,CAMHS Waiting List Monies,HCL NURSING,HNSI0001339,1875.41
Department of Health,Leicestershire Partnership NHS Trust,11/05/23,Nurse - Band 7 - Agency,CAMHS Waiting List Monies,HCL NURSING,HNSI0001339,8671.51
Department of Health,Leicestershire Partnership NHS Trust,11/05/23,NURSE - BAND 2 - AGENCY,Welford Ward (Prev Langley),HCL NURSING,HNSI0001339,2890.58
Department of Health,Leicestershire Partnership NHS Trust,11/05/23,NURSE - BAND 5 - AGENCY,Welford Ward (Prev Langley),HCL NURSING,HNSI0001339,8964.56
Department of Health,Leicestershire Partnership NHS Trust,11/05/23,NURSE - BAND 5 - AGENCY,AMH - Central Access Point,HCL NURSING,HNSI0001337,281.96
Department of Health,Leicestershire Partnership NHS Trust,11/05/23,Nurse - Band 6 -Agency,AMH - Central Access Point,HCL NURSING,HNSI0001337,7113.37
Department of Health,Leicestershire Partnership NHS Trust,11/05/23,NURSE - BAND 2 - AGENCY,Agnes Unit,HCL NURSING,HNSI0001337,35573.77
Department of Health,Leicestershire Partnership NHS Trust,11/05/23,NURSE - BAND 5 - AGENCY,Agnes Unit,HCL NURSING,HNSI0001337,50690.06
Department of Health,Leicestershire Partnership NHS Trust,11/05/23,Nurse - Band 7 - Agency,Agnes Unit,HCL NURSING,HNSI0001337,4134.60
Department of Health,Leicestershire Partnership NHS Trust,11/05/23,NURSE - BAND 2 - AGENCY,Ashby Ward (Bradgate Unit),HCL NURSING,HNSI0001337,7334.08
Department of Health,Leicestershire Partnership NHS Trust,11/05/23,NURSE - BAND 5 - AGENCY,Ashby Ward (Bradgate Unit),HCL NURSING,HNSI0001337,26954.61
Department of Health,Leicestershire Partnership NHS Trust,11/05/23,NURSE - BAND 2 - AGENCY,Aston Ward Bradgate Unit (Prev Welford),HCL NURSING,HNSI0001337,7850.73
Department of Health,Leicestershire Partnership NHS Trust,11/05/23,NURSE - BAND 5 - AGENCY,Aston Ward Bradgate Unit (Prev Welford),HCL NURSING,HNSI0001337,2503.85
Department of Health,Leicestershire Partnership NHS Trust,11/05/23,NURSE - BAND 2 - AGENCY,Beaumont Ward - Bradgate Unit,HCL NURSING,HNSI0001337,8474.26
Department of Health,Leicestershire Partnership NHS Trust,11/05/23,NURSE - BAND 5 - AGENCY,Beaumont Ward - Bradgate Unit,HCL NURSING,HNSI0001337,15770.28
Department of Health,Leicestershire Partnership NHS Trust,11/05/23,NURSE - BAND 2 - AGENCY,Belvoir Psychiatric Intensive Care Unit,HCL NURSING,HNSI0001337,12659.28
Department of Health,Leicestershire Partnership NHS Trust,11/05/23,NURSE - BAND 5 - AGENCY,Belvoir Psychiatric Intensive Care Unit,HCL NURSING,HNSI0001337,15376.91
Department of Health,Leicestershire Partnership NHS Trust,11/05/23,NURSE - BAND 2 - AGENCY,Bosworth Ward - Bradgate Unit,HCL NURSING,HNSI0001337,2708.09
Department of Health,Leicestershire Partnership NHS Trust,11/05/23,NURSE - BAND 5 - AGENCY,Bosworth Ward - Bradgate Unit,HCL NURSING,HNSI0001337,4576.54
Department of Health,Leicestershire Partnership NHS Trust,11/05/23,NURSE - BAND 2 - AGENCY,Cedar (Willows),HCL NURSING,HNSI0001337,1207.21
Department of Health,Leicestershire Partnership NHS Trust,11/05/23,NURSE - BAND 5 - AGENCY,Cedar (Willows),HCL NURSING,HNSI0001337,582.92
Department of Health,Leicestershire Partnership NHS Trust,11/05/23,Nurse - Band 6 -Agency,City West CMHT MHSOP,HCL NURSING,HNSI0001337,2092.50
Department of Health,Leicestershire Partnership NHS Trust,11/05/23,NURSE - BAND 2 - AGENCY,Coleman Ward,HCL NURSING,HNSI0001337,5183.31
Department of Health,Leicestershire Partnership NHS Trust,11/05/23,NURSE - BAND 5 - AGENCY,Coleman Ward,HCL NURSING,HNSI0001337,4573.19
Department of Health,Leicestershire Partnership NHS Trust,11/05/23,NURSE - BAND 5 - AGENCY,Crisis Resolution,HCL NURSING,HNSI0001337,4476.78
Department of Health,Leicestershire Partnership NHS Trust,11/05/23,NURSE - BAND 2 - AGENCY,Griffin Ward (HPC),HCL NURSING,HNSI0001337,9074.13
Department of Health,Leicestershire Partnership NHS Trust,11/05/23,NURSE - BAND 5 - AGENCY,Griffin Ward (HPC),HCL NURSING,HNSI0001337,9250.42
Department of Health,Leicestershire Partnership NHS Trust,11/05/23,NURSE - BAND 2 - AGENCY,Gwendolen Ward,HCL NURSING,HNSI0001337,3117.30
Department of Health,Leicestershire Partnership NHS Trust,11/05/23,NURSE - BAND 5 - AGENCY,Gwendolen Ward,HCL NURSING,HNSI0001337,4899.46
Department of Health,Leicestershire Partnership NHS Trust,11/05/23,NURSE - BAND 2 - AGENCY,Heather Ward,HCL NURSING,HNSI0001337,5173.56
Department of Health,Leicestershire Partnership NHS Trust,11/05/23,NURSE - BAND 5 - AGENCY,Heather Ward,HCL NURSING,HNSI0001337,7059.29
Department of Health,Leicestershire Partnership NHS Trust,11/05/23,NURSE - BAND 2 - AGENCY,Kirby Ward,HCL NURSING,HNSI0001337,17343.70
Department of Health,Leicestershire Partnership NHS Trust,11/05/23,NURSE - BAND 5 - AGENCY,Kirby Ward,HCL NURSING,HNSI0001337,3339.43
Department of Health,Leicestershire Partnership NHS Trust,11/05/23,NURSE - BAND 2 - AGENCY,Maple Ward,HCL NURSING,HNSI0001337,1916.22
Department of Health,Leicestershire Partnership NHS Trust,11/05/23,NURSE - BAND 5 - AGENCY,Maple Ward,HCL NURSING,HNSI0001337,1403.24
Department of Health,Leicestershire Partnership NHS Trust,11/05/23,NURSE - BAND 2 - AGENCY,Mill Lodge,HCL NURSING,HNSI0001337,7849.73
Department of Health,Leicestershire Partnership NHS Trust,11/05/23,NURSE - BAND 5 - AGENCY,Mill Lodge,HCL NURSING,HNSI0001337,1522.69
Department of Health,Leicestershire Partnership NHS Trust,11/05/23,NURSE - BAND 2 - AGENCY,Phoenix Ward (HPC),HCL NURSING,HNSI0001337,4094.22
Department of Health,Leicestershire Partnership NHS Trust,11/05/23,NURSE - BAND 5 - AGENCY,Phoenix Ward (HPC),HCL NURSING,HNSI0001337,9452.59
Department of Health,Leicestershire Partnership NHS Trust,11/05/23,NURSE - BAND 2 - AGENCY,Place Of Safety Assessment Unit,HCL NURSING,HNSI0001337,2971.30
Department of Health,Leicestershire Partnership NHS Trust,11/05/23,NURSE - BAND 5 - AGENCY,Place Of Safety Assessment Unit,HCL NURSING,HNSI0001337,7713.23
Department of Health,Leicestershire Partnership NHS Trust,11/05/23,NURSE - BAND 5 - AGENCY,Stewart House,HCL NURSING,HNSI0001337,1881.19
Department of Health,Leicestershire Partnership NHS Trust,11/05/23,NURSE - BAND 2 - AGENCY,Sycamore (Willows),HCL NURSING,HNSI0001337,2899.50
Department of Health,Leicestershire Partnership NHS Trust,11/05/23,NURSE - BAND 2 - AGENCY,Thornton Ward - Bradgate Unit,HCL NURSING,HNSI0001337,2211.30
Department of Health,Leicestershire Partnership NHS Trust,11/05/23,NURSE - BAND 5 - AGENCY,Thornton Ward - Bradgate Unit,HCL NURSING,HNSI0001337,2527.39
Department of Health,Leicestershire Partnership NHS Trust,11/05/23,NURSE - BAND 2 - AGENCY,Watermead Ward (Bradgate Unit),HCL NURSING,HNSI0001337,1300.83
Department of Health,Leicestershire Partnership NHS Trust,11/05/23,NURSE - BAND 5 - AGENCY,Watermead Ward (Bradgate Unit),HCL NURSING,HNSI0001337,9291.15
Department of Health,Leicestershire Partnership NHS Trust,11/05/23,Nurse - Band 6 -Agency,CAMHS HUB / CAP,HCL WORKFORCE SOLUTIONS,HWSI0001721,15245.55
Department of Health,Leicestershire Partnership NHS Trust,11/05/23,Nurse - Band 6 -Agency,CAMHS Waiting List Monies,HCL WORKFORCE SOLUTIONS,HWSI0001721,27752.18
Department of Health,Leicestershire Partnership NHS Trust,11/05/23,Nurse - Band 6 -Agency,Crisis Response and Home Treatment,HCL WORKFORCE SOLUTIONS,HWSI0001721,3975.22
Department of Health,Leicestershire Partnership NHS Trust,12/05/23,Legal Fees,Chief Executives Office,BROWNE JACOBSON LLP,IN-000148282,33364.75
Department of Health,Leicestershire Partnership NHS Trust,12/05/23,Insurance Costs,Chief Executives Office,NHS LITIGATION AUTHORITY,SICX412039,226283.80
Department of Health,Leicestershire Partnership NHS Trust,15/05/23,Services / Recharges from NHS Trusts,Inter Unit I & E Distribution,UHL NHS TRUST (RWE),L0270816,93376.76
Department of Health,Leicestershire Partnership NHS Trust,15/05/23,Crs_NHS_LT1y -Resus Inventory Supplied.,Balance Sheet Collection,SUPPLY CHAIN CO LTD,1124032181,28098.76
Department of Health,Leicestershire Partnership NHS Trust,15/05/23,Healthcare Services / Recharges from Non-NHS Bodies,Adult Eating Disorder Collaborative,CYGNET HC LTD,EMED011INV,30548.10
Department of Health,Leicestershire Partnership NHS Trust,16/05/23,Nurse - Band 6 -Agency,AMH - Central Access Point,HCL NURSING,HNSI0001345,2770.96
Department of Health,Leicestershire Partnership NHS Trust,16/05/23,NURSE - BAND 2 - AGENCY,Agnes Unit,HCL NURSING,HNSI0001345,16892.93
Department of Health,Leicestershire Partnership NHS Trust,16/05/23,NURSE - BAND 5 - AGENCY,Agnes Unit,HCL NURSING,HNSI0001345,25527.26
Department of Health,Leicestershire Partnership NHS Trust,16/05/23,Nurse - Band 7 - Agency,Agnes Unit,HCL NURSING,HNSI0001345,2195.60
Department of Health,Leicestershire Partnership NHS Trust,16/05/23,NURSE - BAND 2 - AGENCY,Ashby Ward (Bradgate Unit),HCL NURSING,HNSI0001345,4424.59
Department of Health,Leicestershire Partnership NHS Trust,16/05/23,NURSE - BAND 5 - AGENCY,Ashby Ward (Bradgate Unit),HCL NURSING,HNSI0001345,12214.20
Department of Health,Leicestershire Partnership NHS Trust,16/05/23,NURSE - BAND 2 - AGENCY,Aston Ward Bradgate Unit (Prev Welford),HCL NURSING,HNSI0001345,2234.63
Department of Health,Leicestershire Partnership NHS Trust,16/05/23,NURSE - BAND 5 - AGENCY,Aston Ward Bradgate Unit (Prev Welford),HCL NURSING,HNSI0001345,928.24
Department of Health,Leicestershire Partnership NHS Trust,16/05/23,NURSE - BAND 2 - AGENCY,Beaumont Ward - Bradgate Unit,HCL NURSING,HNSI0001345,2809.34
Department of Health,Leicestershire Partnership NHS Trust,16/05/23,NURSE - BAND 5 - AGENCY,Beaumont Ward - Bradgate Unit,HCL NURSING,HNSI0001345,6290.08
Department of Health,Leicestershire Partnership NHS Trust,16/05/23,NURSE - BAND 2 - AGENCY,Belvoir Psychiatric Intensive Care Unit,HCL NURSING,HNSI0001345,6178.56
Department of Health,Leicestershire Partnership NHS Trust,16/05/23,NURSE - BAND 5 - AGENCY,Belvoir Psychiatric Intensive Care Unit,HCL NURSING,HNSI0001345,7576.97
Department of Health,Leicestershire Partnership NHS Trust,16/05/23,NURSE - BAND 2 - AGENCY,Bosworth Ward - Bradgate Unit,HCL NURSING,HNSI0001345,410.38
Department of Health,Leicestershire Partnership NHS Trust,16/05/23,NURSE - BAND 5 - AGENCY,Bosworth Ward - Bradgate Unit,HCL NURSING,HNSI0001345,2770.27
Department of Health,Leicestershire Partnership NHS Trust,16/05/23,NURSE - BAND 2 - AGENCY,Cedar (Willows),HCL NURSING,HNSI0001345,467.29
Department of Health,Leicestershire Partnership NHS Trust,16/05/23,NURSE - BAND 5 - AGENCY,Cedar (Willows),HCL NURSING,HNSI0001345,291.46
Department of Health,Leicestershire Partnership NHS Trust,16/05/23,Nurse - Band 6 -Agency,City West CMHT MHSOP,HCL NURSING,HNSI0001345,1046.25
Department of Health,Leicestershire Partnership NHS Trust,16/05/23,NURSE - BAND 2 - AGENCY,Coleman Ward,HCL NURSING,HNSI0001345,1576.21
Department of Health,Leicestershire Partnership NHS Trust,16/05/23,NURSE - BAND 5 - AGENCY,Coleman Ward,HCL NURSING,HNSI0001345,2357.16
Department of Health,Leicestershire Partnership NHS Trust,16/05/23,NURSE - BAND 5 - AGENCY,Crisis Resolution,HCL NURSING,HNSI0001345,453.04
Department of Health,Leicestershire Partnership NHS Trust,16/05/23,NURSE - BAND 2 - AGENCY,Griffin Ward (HPC),HCL NURSING,HNSI0001345,4485.30
Department of Health,Leicestershire Partnership NHS Trust,16/05/23,NURSE - BAND 5 - AGENCY,Griffin Ward (HPC),HCL NURSING,HNSI0001345,4503.44
Department of Health,Leicestershire Partnership NHS Trust,16/05/23,NURSE - BAND 2 - AGENCY,Gwendolen Ward,HCL NURSING,HNSI0001345,2175.93
Department of Health,Leicestershire Partnership NHS Trust,16/05/23,NURSE - BAND 5 - AGENCY,Gwendolen Ward,HCL NURSING,HNSI0001345,3468.03
Department of Health,Leicestershire Partnership NHS Trust,16/05/23,NURSE - BAND 2 - AGENCY,Heather Ward,HCL NURSING,HNSI0001345,1365.89
Department of Health,Leicestershire Partnership NHS Trust,16/05/23,NURSE - BAND 5 - AGENCY,Heather Ward,HCL NURSING,HNSI0001345,3961.19
Department of Health,Leicestershire Partnership NHS Trust,16/05/23,NURSE - BAND 2 - AGENCY,Kirby Ward,HCL NURSING,HNSI0001345,4327.65
Department of Health,Leicestershire Partnership NHS Trust,16/05/23,NURSE - BAND 5 - AGENCY,Kirby Ward,HCL NURSING,HNSI0001345,964.06
Department of Health,Leicestershire Partnership NHS Trust,16/05/23,NURSE - BAND 2 - AGENCY,Maple Ward,HCL NURSING,HNSI0001345,617.53
Department of Health,Leicestershire Partnership NHS Trust,16/05/23,NURSE - BAND 2 - AGENCY,Mill Lodge,HCL NURSING,HNSI0001345,1898.50
Department of Health,Leicestershire Partnership NHS Trust,16/05/23,NURSE - BAND 5 - AGENCY,Mill Lodge,HCL NURSING,HNSI0001345,539.30
Department of Health,Leicestershire Partnership NHS Trust,16/05/23,NURSE - BAND 2 - AGENCY,Phoenix Ward (HPC),HCL NURSING,HNSI0001345,3311.24
Department of Health,Leicestershire Partnership NHS Trust,16/05/23,NURSE - BAND 5 - AGENCY,Phoenix Ward (HPC),HCL NURSING,HNSI0001345,3749.57
Department of Health,Leicestershire Partnership NHS Trust,16/05/23,NURSE - BAND 2 - AGENCY,Place Of Safety Assessment Unit,HCL NURSING,HNSI0001345,1083.47
Department of Health,Leicestershire Partnership NHS Trust,16/05/23,NURSE - BAND 5 - AGENCY,Place Of Safety Assessment Unit,HCL NURSING,HNSI0001345,3473.64
Department of Health,Leicestershire Partnership NHS Trust,16/05/23,NURSE - BAND 5 - AGENCY,Stewart House,HCL NURSING,HNSI0001345,1045.19
Department of Health,Leicestershire Partnership NHS Trust,16/05/23,NURSE - BAND 2 - AGENCY,Sycamore (Willows),HCL NURSING,HNSI0001345,1403.70
Department of Health,Leicestershire Partnership NHS Trust,16/05/23,NURSE - BAND 2 - AGENCY,Thornton Ward - Bradgate Unit,HCL NURSING,HNSI0001345,513.07
Department of Health,Leicestershire Partnership NHS Trust,16/05/23,NURSE - BAND 5 - AGENCY,Thornton Ward - Bradgate Unit,HCL NURSING,HNSI0001345,600.65
Department of Health,Leicestershire Partnership NHS Trust,16/05/23,Nurse - Band 6 -Agency,CAMHS HUB / CAP,HCL WORKFORCE SOLUTIONS,HWSI0001730,10652.63
Department of Health,Leicestershire Partnership NHS Trust,16/05/23,Nurse - Band 6 -Agency,CAMHS Waiting List Monies,HCL WORKFORCE SOLUTIONS,HWSI0001730,14350.18
Department of Health,Leicestershire Partnership NHS Trust,16/05/23,Nurse - Band 6 -Agency,Crisis Response and Home Treatment,HCL WORKFORCE SOLUTIONS,HWSI0001730,3975.22
Department of Health,Leicestershire Partnership NHS Trust,16/05/23,NURSE - BAND 2 - AGENCY,CAMHS Inpatient Service,HCL NURSING,HNSI0001347,20603.74
Department of Health,Leicestershire Partnership NHS Trust,16/05/23,NURSE - BAND 5 - AGENCY,CAMHS Inpatient Service,HCL NURSING,HNSI0001347,7842.17
Department of Health,Leicestershire Partnership NHS Trust,16/05/23,NURSE - BAND 2 - AGENCY,CAMHS Learning Disabilities and Outreach Team,HCL NURSING,HNSI0001347,1806.14
Department of Health,Leicestershire Partnership NHS Trust,16/05/23,Nurse - Band 7 - Agency,CAMHS Waiting List Monies,HCL NURSING,HNSI0001347,4433.43
Department of Health,Leicestershire Partnership NHS Trust,16/05/23,NURSE - BAND 2 - AGENCY,Welford Ward (Prev Langley),HCL NURSING,HNSI0001347,608.68
Department of Health,Leicestershire Partnership NHS Trust,16/05/23,NURSE - BAND 5 - AGENCY,Welford Ward (Prev Langley),HCL NURSING,HNSI0001347,6183.57
Department of Health,Leicestershire Partnership NHS Trust,17/05/23,HR / Payroll Services,HR Employment Services,LINCOLNSHIRE PART NHSFT(RP7),L0000836,34400.00
Department of Health,Leicestershire Partnership NHS Trust,17/05/23,Landline Telephone Rental / Calls,"Beaumont Leys Health Centre (P94, LPT)",VIRGIN MEDIA BUSINESS,853083001/004/0523,323.01
Department of Health,Leicestershire Partnership NHS Trust,17/05/23,Landline Telephone Rental / Calls,"Bennion Centre (including Forest Grange Day Unit) (P8, LPT)",VIRGIN MEDIA BUSINESS,853083001/004/0523,7.74
Department of Health,Leicestershire Partnership NHS Trust,17/05/23,Landline Telephone Rental / Calls,"Bradgate Unit (including Glenvale day Unit) (P7, LPT)",VIRGIN MEDIA BUSINESS,853083001/004/0523,6494.57
Department of Health,Leicestershire Partnership NHS Trust,17/05/23,Landline Telephone Rental / Calls,Braunstone Health and Social Care Centre (Part) (PROPCO),VIRGIN MEDIA BUSINESS,853083001/004/0523,987.76
Department of Health,Leicestershire Partnership NHS Trust,17/05/23,Landline Telephone Rental / Calls,Bridge Park Plaza - First Floor (LPT),VIRGIN MEDIA BUSINESS,853083001/004/0523,3060.54
Department of Health,Leicestershire Partnership NHS Trust,17/05/23,Landline Telephone Rental / Calls,"Coalville Community Hospital (P138, LPT)",VIRGIN MEDIA BUSINESS,853083001/004/0523,1377.07
Department of Health,Leicestershire Partnership NHS Trust,17/05/23,Landline Telephone Rental / Calls,"Coalville Health Centre (P121, LPT)",VIRGIN MEDIA BUSINESS,853083001/004/0523,105.42
Department of Health,Leicestershire Partnership NHS Trust,17/05/23,Landline Telephone Rental / Calls,County Hall,VIRGIN MEDIA BUSINESS,853083001/004/0523,1503.82
Department of Health,Leicestershire Partnership NHS Trust,17/05/23,Landline Telephone Rental / Calls,Estates & Facilities Central,VIRGIN MEDIA BUSINESS,853083001/004/0523,7.04
Department of Health,Leicestershire Partnership NHS Trust,17/05/23,Landline Telephone Rental / Calls,"Evington Centre (P6, LPT)",VIRGIN MEDIA BUSINESS,853083001/004/0523,204.06
Department of Health,Leicestershire Partnership NHS Trust,17/05/23,Landline Telephone Rental / Calls,HIS,VIRGIN MEDIA BUSINESS,853083001/004/0523,2680.36
Department of Health,Leicestershire Partnership NHS Trust,17/05/23,Landline Telephone Rental / Calls,"Hinckley and Bosworth Community Hospital (Sunnyside) (P133, LPT)",VIRGIN MEDIA BUSINESS,853083001/004/0523,937.91
Department of Health,Leicestershire Partnership NHS Trust,17/05/23,Landline Telephone Rental / Calls,"Hynca Lodge (P33, LPT)",VIRGIN MEDIA BUSINESS,853083001/004/0523,838.65
Department of Health,Leicestershire Partnership NHS Trust,17/05/23,Landline Telephone Rental / Calls,"Legion House, Ashby",VIRGIN MEDIA BUSINESS,853083001/004/0523,20.59
Department of Health,Leicestershire Partnership NHS Trust,17/05/23,Landline Telephone Rental / Calls,"Loughborough Hospital (P136, LPT)",VIRGIN MEDIA BUSINESS,853083001/004/0523,4269.74
Department of Health,Leicestershire Partnership NHS Trust,17/05/23,Landline Telephone Rental / Calls,Mawson House (LPT),VIRGIN MEDIA BUSINESS,853083001/004/0523,434.26
Department of Health,Leicestershire Partnership NHS Trust,17/05/23,Landline Telephone Rental / Calls,Merlyn Vaz Centre (CHP),VIRGIN MEDIA BUSINESS,853083001/004/0523,1308.61
Department of Health,Leicestershire Partnership NHS Trust,17/05/23,Landline Telephone Rental / Calls,"Mett Centre (P49, LPT)",VIRGIN MEDIA BUSINESS,853083001/004/0523,116.47
Department of Health,Leicestershire Partnership NHS Trust,17/05/23,Landline Telephone Rental / Calls,NSPCC Training Cente,VIRGIN MEDIA BUSINESS,853083001/004/0523,159.95
Department of Health,Leicestershire Partnership NHS Trust,17/05/23,Landline Telephone Rental / Calls,New Parks Health Centre (PROPCO),VIRGIN MEDIA BUSINESS,853083001/004/0523,1640.75
Department of Health,Leicestershire Partnership NHS Trust,17/05/23,Landline Telephone Rental / Calls,"OSL House (P54, LPT)",VIRGIN MEDIA BUSINESS,853083001/004/0523,915.02
Department of Health,Leicestershire Partnership NHS Trust,17/05/23,Landline Telephone Rental / Calls,"Orchard Resource Centre (P15, LPT)",VIRGIN MEDIA BUSINESS,853083001/004/0523,508.04
Department of Health,Leicestershire Partnership NHS Trust,17/05/23,Landline Telephone Rental / Calls,Pasley Road Health Centre (PROPCO),VIRGIN MEDIA BUSINESS,853083001/004/0523,143.65
Department of Health,Leicestershire Partnership NHS Trust,17/05/23,Landline Telephone Rental / Calls,"Prince Philip House (P96, LPT)",VIRGIN MEDIA BUSINESS,853083001/004/0523,1199.26
Department of Health,Leicestershire Partnership NHS Trust,17/05/23,Landline Telephone Rental / Calls,Rushey Mead Health Centre (PROPCO),VIRGIN MEDIA BUSINESS,853083001/004/0523,76.51
Department of Health,Leicestershire Partnership NHS Trust,17/05/23,Landline Telephone Rental / Calls,"Springfield Road Health Centre (P92, LPT)",VIRGIN MEDIA BUSINESS,853083001/004/0523,329.88
Department of Health,Leicestershire Partnership NHS Trust,17/05/23,Landline Telephone Rental / Calls,"St Peters Health Center (Part 1st and 2nd floors) (P66, LPT)",VIRGIN MEDIA BUSINESS,853083001/004/0523,1507.32
Department of Health,Leicestershire Partnership NHS Trust,17/05/23,Landline Telephone Rental / Calls,"Swithland House - London Road 352 (P44, LPT)",VIRGIN MEDIA BUSINESS,853083001/004/0523,245.69
Department of Health,Leicestershire Partnership NHS Trust,17/05/23,Landline Telephone Rental / Calls,"The Cedars (P19, LPT)",VIRGIN MEDIA BUSINESS,853083001/004/0523,619.69
Department of Health,Leicestershire Partnership NHS Trust,17/05/23,Landline Telephone Rental / Calls,"The Willows - Cordelia Close (P22, LPT)",VIRGIN MEDIA BUSINESS,853083001/004/0523,479.76
Department of Health,Leicestershire Partnership NHS Trust,17/05/23,Landline Telephone Rental / Calls,"Valentine Centre (P3, LPT)",VIRGIN MEDIA BUSINESS,853083001/004/0523,477.42
Department of Health,Leicestershire Partnership NHS Trust,17/05/23,Landline Telephone Rental / Calls,Warren Park Way 25 (PROPCO),VIRGIN MEDIA BUSINESS,853083001/004/0523,744.26
Department of Health,Leicestershire Partnership NHS Trust,17/05/23,Landline Telephone Rental / Calls,"Westcotes Group -Westcotes House (P78, LPT)",VIRGIN MEDIA BUSINESS,853083001/004/0523,803.58
Department of Health,Leicestershire Partnership NHS Trust,17/05/23,Landline Telephone Rental / Calls,"Winstanley Drive Health Centre (P8, LPT)",VIRGIN MEDIA BUSINESS,853083001/004/0523,46.44
Department of Health,Leicestershire Partnership NHS Trust,17/05/23,Professional & Technical Agency,LLR Shared Care Record Programme,SYNANETICS LTD,INV-00440,83700.00
Department of Health,Leicestershire Partnership NHS Trust,17/05/23,Professional & Technical Agency,LLR Shared Care Record Programme,SYNANETICS LTD,INV-00441,48420.00
Department of Health,Leicestershire Partnership NHS Trust,17/05/23,Payroll Deductions -NEST EES Pensions,Balance Sheet Collection,NEST,P01DEDS-313/2023,14865.59
Department of Health,Leicestershire Partnership NHS Trust,17/05/23,Payroll Deductions -NEST ERS Pensions,Balance Sheet Collection,NEST,P01DEDS-313/2023,11142.89
Department of Health,Leicestershire Partnership NHS Trust,18/05/23,Mobile Telephone Rental / Calls,Specific Unit Budget Reserves,VODAFONE CORPORATE LTD,MAY2023,69777.78
Department of Health,Leicestershire Partnership NHS Trust,18/05/23,Medical Equipment Repairs / Maintenance,Medical Devices Maintenance (LPT),VIVID CARE,YC7402,39344.10
Department of Health,Leicestershire Partnership NHS Trust,19/05/23,NURSE - BAND 2 - AGENCY,Beechwood Ward,HCL NURSING,HNSI0001346,7206.88
Department of Health,Leicestershire Partnership NHS Trust,19/05/23,NURSE - BAND 5 - AGENCY,Beechwood Ward,HCL NURSING,HNSI0001346,2264.24
Department of Health,Leicestershire Partnership NHS Trust,19/05/23,NURSE - BAND 2 - AGENCY,CHS Surge Ward,HCL NURSING,HNSI0001346,9571.43
Department of Health,Leicestershire Partnership NHS Trust,19/05/23,NURSE - BAND 5 - AGENCY,CHS Surge Ward,HCL NURSING,HNSI0001346,8098.13
Department of Health,Leicestershire Partnership NHS Trust,19/05/23,NURSE - BAND 5 - AGENCY,City Planned Care - East,HCL NURSING,HNSI0001346,11565.03
Department of Health,Leicestershire Partnership NHS Trust,19/05/23,NURSE - BAND 5 - AGENCY,City Planned Care - West,HCL NURSING,HNSI0001346,7091.90
Department of Health,Leicestershire Partnership NHS Trust,19/05/23,NURSE - BAND 2 - AGENCY,Clarendon Ward,HCL NURSING,HNSI0001346,5343.33
Department of Health,Leicestershire Partnership NHS Trust,19/05/23,NURSE - BAND 5 - AGENCY,Clarendon Ward,HCL NURSING,HNSI0001346,1301.30
Department of Health,Leicestershire Partnership NHS Trust,19/05/23,NURSE - BAND 2 - AGENCY,Coalville Snibston Ward,HCL NURSING,HNSI0001346,5494.55
Department of Health,Leicestershire Partnership NHS Trust,19/05/23,NURSE - BAND 5 - AGENCY,Coalville Snibston Ward,HCL NURSING,HNSI0001346,1430.03
Department of Health,Leicestershire Partnership NHS Trust,19/05/23,NURSE - BAND 2 - AGENCY,Coalville Ward 2,HCL NURSING,HNSI0001346,6378.73
Department of Health,Leicestershire Partnership NHS Trust,19/05/23,NURSE - BAND 5 - AGENCY,Coalville Ward 2,HCL NURSING,HNSI0001346,2082.08
Department of Health,Leicestershire Partnership NHS Trust,19/05/23,NURSE - BAND 2 - AGENCY,Dalgliesh Ward,HCL NURSING,HNSI0001346,7908.94
Department of Health,Leicestershire Partnership NHS Trust,19/05/23,NURSE - BAND 5 - AGENCY,Dalgliesh Ward,HCL NURSING,HNSI0001346,2466.73
Department of Health,Leicestershire Partnership NHS Trust,19/05/23,NURSE - BAND 5 - AGENCY,"East Planned Care - Oadby,Wigston & Harborough",HCL NURSING,HNSI0001346,1074.66
Department of Health,Leicestershire Partnership NHS Trust,19/05/23,NURSE - BAND 2 - AGENCY,H&B Comm Hosp East Ward,HCL NURSING,HNSI0001346,7087.63
Department of Health,Leicestershire Partnership NHS Trust,19/05/23,NURSE - BAND 5 - AGENCY,H&B Comm Hosp East Ward,HCL NURSING,HNSI0001346,12706.64
Department of Health,Leicestershire Partnership NHS Trust,19/05/23,NURSE - BAND 2 - AGENCY,H&B Comm Hosp North Ward,HCL NURSING,HNSI0001346,4522.79
Department of Health,Leicestershire Partnership NHS Trust,19/05/23,NURSE - BAND 5 - AGENCY,H&B Comm Hosp North Ward,HCL NURSING,HNSI0001346,2970.16
Department of Health,Leicestershire Partnership NHS Trust,19/05/23,NURSE - BAND 2 - AGENCY,Lough Swithland Ward,HCL NURSING,HNSI0001346,4202.38
Department of Health,Leicestershire Partnership NHS Trust,19/05/23,NURSE - BAND 5 - AGENCY,Lough Swithland Ward,HCL NURSING,HNSI0001346,1628.93
Department of Health,Leicestershire Partnership NHS Trust,19/05/23,NURSE - BAND 5 - AGENCY,Non Recurrent 2012/13,HCL NURSING,HNSI0001346,15.42
Department of Health,Leicestershire Partnership NHS Trust,19/05/23,NURSE - BAND 2 - AGENCY,Rutland Ward Nursing,HCL NURSING,HNSI0001346,3119.75
Department of Health,Leicestershire Partnership NHS Trust,19/05/23,NURSE - BAND 5 - AGENCY,Rutland Ward Nursing,HCL NURSING,HNSI0001346,1566.64
Department of Health,Leicestershire Partnership NHS Trust,19/05/23,NURSE - BAND 2 - AGENCY,St Lukes Stroke Ward,HCL NURSING,HNSI0001346,7480.34
Department of Health,Leicestershire Partnership NHS Trust,19/05/23,NURSE - BAND 5 - AGENCY,St Lukes Stroke Ward,HCL NURSING,HNSI0001346,2582.59
Department of Health,Leicestershire Partnership NHS Trust,19/05/23,NURSE - BAND 2 - AGENCY,St Lukes Ward 3,HCL NURSING,HNSI0001346,3349.46
Department of Health,Leicestershire Partnership NHS Trust,19/05/23,NURSE - BAND 5 - AGENCY,St Lukes Ward 3,HCL NURSING,HNSI0001346,2439.09
Department of Health,Leicestershire Partnership NHS Trust,19/05/23,NURSE - BAND 2 - AGENCY,Beechwood Ward,HCL NURSING,HNSI0001356,3987.36
Department of Health,Leicestershire Partnership NHS Trust,19/05/23,NURSE - BAND 5 - AGENCY,Beechwood Ward,HCL NURSING,HNSI0001356,4138.84
Department of Health,Leicestershire Partnership NHS Trust,19/05/23,NURSE - BAND 2 - AGENCY,CHS Surge Ward,HCL NURSING,HNSI0001356,12106.71
Department of Health,Leicestershire Partnership NHS Trust,19/05/23,NURSE - BAND 5 - AGENCY,CHS Surge Ward,HCL NURSING,HNSI0001356,10639.36
Department of Health,Leicestershire Partnership NHS Trust,19/05/23,NURSE - BAND 5 - AGENCY,City Planned Care - East,HCL NURSING,HNSI0001356,12001.62
Department of Health,Leicestershire Partnership NHS Trust,19/05/23,NURSE - BAND 5 - AGENCY,City Planned Care - West,HCL NURSING,HNSI0001356,11328.17
Department of Health,Leicestershire Partnership NHS Trust,19/05/23,NURSE - BAND 2 - AGENCY,Clarendon Ward,HCL NURSING,HNSI0001356,7239.60
Department of Health,Leicestershire Partnership NHS Trust,19/05/23,NURSE - BAND 5 - AGENCY,Clarendon Ward,HCL NURSING,HNSI0001356,821.44
Department of Health,Leicestershire Partnership NHS Trust,19/05/23,NURSE - BAND 2 - AGENCY,Coalville Snibston Ward,HCL NURSING,HNSI0001356,7627.75
Department of Health,Leicestershire Partnership NHS Trust,19/05/23,NURSE - BAND 2 - AGENCY,Coalville Ward 2,HCL NURSING,HNSI0001356,4274.01
Department of Health,Leicestershire Partnership NHS Trust,19/05/23,NURSE - BAND 5 - AGENCY,Coalville Ward 2,HCL NURSING,HNSI0001356,2758.54
Department of Health,Leicestershire Partnership NHS Trust,19/05/23,NURSE - BAND 2 - AGENCY,Dalgliesh Ward,HCL NURSING,HNSI0001356,10099.09
Department of Health,Leicestershire Partnership NHS Trust,19/05/23,NURSE - BAND 5 - AGENCY,Dalgliesh Ward,HCL NURSING,HNSI0001356,2824.34
Department of Health,Leicestershire Partnership NHS Trust,19/05/23,NURSE - BAND 5 - AGENCY,"East Planned Care - Oadby,Wigston & Harborough",HCL NURSING,HNSI0001356,1501.18
Department of Health,Leicestershire Partnership NHS Trust,19/05/23,NURSE - BAND 2 - AGENCY,H&B Comm Hosp East Ward,HCL NURSING,HNSI0001356,3603.72
Department of Health,Leicestershire Partnership NHS Trust,19/05/23,NURSE - BAND 5 - AGENCY,H&B Comm Hosp East Ward,HCL NURSING,HNSI0001356,9148.62
Department of Health,Leicestershire Partnership NHS Trust,19/05/23,NURSE - BAND 2 - AGENCY,H&B Comm Hosp North Ward,HCL NURSING,HNSI0001356,4093.55
Department of Health,Leicestershire Partnership NHS Trust,19/05/23,NURSE - BAND 5 - AGENCY,H&B Comm Hosp North Ward,HCL NURSING,HNSI0001356,3487.35
Department of Health,Leicestershire Partnership NHS Trust,19/05/23,NURSE - BAND 2 - AGENCY,Lough Swithland Ward,HCL NURSING,HNSI0001356,3645.01
Department of Health,Leicestershire Partnership NHS Trust,19/05/23,NURSE - BAND 5 - AGENCY,Lough Swithland Ward,HCL NURSING,HNSI0001356,792.26
Department of Health,Leicestershire Partnership NHS Trust,19/05/23,NURSE - BAND 5 - AGENCY,Non Recurrent 2012/13,HCL NURSING,HNSI0001356,250.58
Department of Health,Leicestershire Partnership NHS Trust,19/05/23,NURSE - BAND 2 - AGENCY,Rutland Ward Nursing,HCL NURSING,HNSI0001356,5381.67
Department of Health,Leicestershire Partnership NHS Trust,19/05/23,NURSE - BAND 5 - AGENCY,Rutland Ward Nursing,HCL NURSING,HNSI0001356,2481.29
Department of Health,Leicestershire Partnership NHS Trust,19/05/23,NURSE - BAND 2 - AGENCY,St Lukes Stroke Ward,HCL NURSING,HNSI0001356,6436.49
Department of Health,Leicestershire Partnership NHS Trust,19/05/23,NURSE - BAND 5 - AGENCY,St Lukes Stroke Ward,HCL NURSING,HNSI0001356,992.74
Department of Health,Leicestershire Partnership NHS Trust,19/05/23,NURSE - BAND 2 - AGENCY,St Lukes Ward 3,HCL NURSING,HNSI0001356,3126.12
Department of Health,Leicestershire Partnership NHS Trust,19/05/23,NURSE - BAND 5 - AGENCY,St Lukes Ward 3,HCL NURSING,HNSI0001356,1150.16
Department of Health,Leicestershire Partnership NHS Trust,19/05/23,Med GP Trainees,Medical Trainees,ST.HELENS & KNOWSLEY NHS TRUST,16821857,75000.00
Department of Health,Leicestershire Partnership NHS Trust,19/05/23,Nurse - Band 6 -Agency,CAMHS HUB / CAP,HCL WORKFORCE SOLUTIONS,HWSI0001745,8472.29
Department of Health,Leicestershire Partnership NHS Trust,19/05/23,Nurse - Band 6 -Agency,CAMHS Outpatients,HCL WORKFORCE SOLUTIONS,HWSI0001745,2040.36
Department of Health,Leicestershire Partnership NHS Trust,19/05/23,Nurse - Band 6 -Agency,CAMHS Waiting List Monies,HCL WORKFORCE SOLUTIONS,HWSI0001745,15775.11
Department of Health,Leicestershire Partnership NHS Trust,19/05/23,NURSE - BAND 2 - AGENCY,CAMHS ED Team,HCL NURSING,HNSI0001357,1059.28
Department of Health,Leicestershire Partnership NHS Trust,19/05/23,NURSE - BAND 2 - AGENCY,CAMHS Inpatient Service,HCL NURSING,HNSI0001357,15017.11
Department of Health,Leicestershire Partnership NHS Trust,19/05/23,NURSE - BAND 5 - AGENCY,CAMHS Inpatient Service,HCL NURSING,HNSI0001357,5734.24
Department of Health,Leicestershire Partnership NHS Trust,19/05/23,NURSE - BAND 2 - AGENCY,CAMHS Learning Disabilities and Outreach Team,HCL NURSING,HNSI0001357,1685.73
Department of Health,Leicestershire Partnership NHS Trust,19/05/23,Nurse - Band 7 - Agency,CAMHS Waiting List Monies,HCL NURSING,HNSI0001357,4987.57
Department of Health,Leicestershire Partnership NHS Trust,19/05/23,NURSE - BAND 2 - AGENCY,Welford Ward (Prev Langley),HCL NURSING,HNSI0001357,991.04
Department of Health,Leicestershire Partnership NHS Trust,19/05/23,NURSE - BAND 5 - AGENCY,Welford Ward (Prev Langley),HCL NURSING,HNSI0001357,4335.18
Department of Health,Leicestershire Partnership NHS Trust,19/05/23,Nurse - Band 6 -Agency,AMH - Central Access Point,HCL NURSING,HNSI0001355,4019.53
Department of Health,Leicestershire Partnership NHS Trust,19/05/23,NURSE - BAND 2 - AGENCY,Agnes Unit,HCL NURSING,HNSI0001355,22112.38
Department of Health,Leicestershire Partnership NHS Trust,19/05/23,NURSE - BAND 5 - AGENCY,Agnes Unit,HCL NURSING,HNSI0001355,21651.12
Department of Health,Leicestershire Partnership NHS Trust,19/05/23,Nurse - Band 7 - Agency,Agnes Unit,HCL NURSING,HNSI0001355,2611.66
Department of Health,Leicestershire Partnership NHS Trust,19/05/23,NURSE - BAND 2 - AGENCY,Ashby Ward (Bradgate Unit),HCL NURSING,HNSI0001355,3537.53
Department of Health,Leicestershire Partnership NHS Trust,19/05/23,NURSE - BAND 5 - AGENCY,Ashby Ward (Bradgate Unit),HCL NURSING,HNSI0001355,10676.11
Department of Health,Leicestershire Partnership NHS Trust,19/05/23,NURSE - BAND 2 - AGENCY,Aston Ward Bradgate Unit (Prev Welford),HCL NURSING,HNSI0001355,1470.38
Department of Health,Leicestershire Partnership NHS Trust,19/05/23,NURSE - BAND 5 - AGENCY,Aston Ward Bradgate Unit (Prev Welford),HCL NURSING,HNSI0001355,1081.85
Department of Health,Leicestershire Partnership NHS Trust,19/05/23,NURSE - BAND 2 - AGENCY,Beaumont Ward - Bradgate Unit,HCL NURSING,HNSI0001355,4161.67
Department of Health,Leicestershire Partnership NHS Trust,19/05/23,NURSE - BAND 5 - AGENCY,Beaumont Ward - Bradgate Unit,HCL NURSING,HNSI0001355,9271.79
Department of Health,Leicestershire Partnership NHS Trust,19/05/23,NURSE - BAND 2 - AGENCY,Belvoir Psychiatric Intensive Care Unit,HCL NURSING,HNSI0001355,4206.46
Department of Health,Leicestershire Partnership NHS Trust,19/05/23,NURSE - BAND 5 - AGENCY,Belvoir Psychiatric Intensive Care Unit,HCL NURSING,HNSI0001355,2614.33
Department of Health,Leicestershire Partnership NHS Trust,19/05/23,NURSE - BAND 2 - AGENCY,Bosworth Ward - Bradgate Unit,HCL NURSING,HNSI0001355,613.62
Department of Health,Leicestershire Partnership NHS Trust,19/05/23,NURSE - BAND 5 - AGENCY,Bosworth Ward - Bradgate Unit,HCL NURSING,HNSI0001355,3659.00
Department of Health,Leicestershire Partnership NHS Trust,19/05/23,NURSE - BAND 2 - AGENCY,Cedar (Willows),HCL NURSING,HNSI0001355,252.81
Department of Health,Leicestershire Partnership NHS Trust,19/05/23,NURSE - BAND 5 - AGENCY,Cedar (Willows),HCL NURSING,HNSI0001355,792.09
Department of Health,Leicestershire Partnership NHS Trust,19/05/23,Nurse - Band 6 -Agency,City West CMHT MHSOP,HCL NURSING,HNSI0001355,1674.00
Department of Health,Leicestershire Partnership NHS Trust,19/05/23,NURSE - BAND 2 - AGENCY,Coleman Ward,HCL NURSING,HNSI0001355,4587.41
Department of Health,Leicestershire Partnership NHS Trust,19/05/23,NURSE - BAND 5 - AGENCY,Coleman Ward,HCL NURSING,HNSI0001355,2548.50
Department of Health,Leicestershire Partnership NHS Trust,19/05/23,NURSE - BAND 5 - AGENCY,Crisis Resolution,HCL NURSING,HNSI0001355,1809.34
Department of Health,Leicestershire Partnership NHS Trust,19/05/23,NURSE - BAND 2 - AGENCY,Griffin Ward (HPC),HCL NURSING,HNSI0001355,4794.49
Department of Health,Leicestershire Partnership NHS Trust,19/05/23,NURSE - BAND 5 - AGENCY,Griffin Ward (HPC),HCL NURSING,HNSI0001355,3518.02
Department of Health,Leicestershire Partnership NHS Trust,19/05/23,NURSE - BAND 2 - AGENCY,Gwendolen Ward,HCL NURSING,HNSI0001355,3944.03
Department of Health,Leicestershire Partnership NHS Trust,19/05/23,NURSE - BAND 5 - AGENCY,Gwendolen Ward,HCL NURSING,HNSI0001355,2019.91
Department of Health,Leicestershire Partnership NHS Trust,19/05/23,NURSE - BAND 2 - AGENCY,Heather Ward,HCL NURSING,HNSI0001355,2637.91
Department of Health,Leicestershire Partnership NHS Trust,19/05/23,NURSE - BAND 5 - AGENCY,Heather Ward,HCL NURSING,HNSI0001355,4965.86
Department of Health,Leicestershire Partnership NHS Trust,19/05/23,NURSE - BAND 2 - AGENCY,Kirby Ward,HCL NURSING,HNSI0001355,9710.37
Department of Health,Leicestershire Partnership NHS Trust,19/05/23,NURSE - BAND 5 - AGENCY,Kirby Ward,HCL NURSING,HNSI0001355,291.46
Department of Health,Leicestershire Partnership NHS Trust,19/05/23,NURSE - BAND 2 - AGENCY,Maple Ward,HCL NURSING,HNSI0001355,394.26
Department of Health,Leicestershire Partnership NHS Trust,19/05/23,Nurse - Band 6 -Agency,Mental Health Liaison Team,HCL NURSING,HNSI0001355,2015.36
Department of Health,Leicestershire Partnership NHS Trust,19/05/23,NURSE - BAND 2 - AGENCY,Mill Lodge,HCL NURSING,HNSI0001355,2878.89
Department of Health,Leicestershire Partnership NHS Trust,19/05/23,NURSE - BAND 5 - AGENCY,Mill Lodge,HCL NURSING,HNSI0001355,1650.76
Department of Health,Leicestershire Partnership NHS Trust,19/05/23,NURSE - BAND 2 - AGENCY,Phoenix Ward (HPC),HCL NURSING,HNSI0001355,976.48
Department of Health,Leicestershire Partnership NHS Trust,19/05/23,NURSE - BAND 5 - AGENCY,Phoenix Ward (HPC),HCL NURSING,HNSI0001355,2063.54
Department of Health,Leicestershire Partnership NHS Trust,19/05/23,NURSE - BAND 2 - AGENCY,Place Of Safety Assessment Unit,HCL NURSING,HNSI0001355,265.00
Department of Health,Leicestershire Partnership NHS Trust,19/05/23,NURSE - BAND 5 - AGENCY,Place Of Safety Assessment Unit,HCL NURSING,HNSI0001355,3824.79
Department of Health,Leicestershire Partnership NHS Trust,19/05/23,NURSE - BAND 2 - AGENCY,Sycamore (Willows),HCL NURSING,HNSI0001355,583.80
Department of Health,Leicestershire Partnership NHS Trust,19/05/23,NURSE - BAND 5 - AGENCY,Sycamore (Willows),HCL NURSING,HNSI0001355,869.03
Department of Health,Leicestershire Partnership NHS Trust,19/05/23,NURSE - BAND 2 - AGENCY,Thornton Ward - Bradgate Unit,HCL NURSING,HNSI0001355,485.21
Department of Health,Leicestershire Partnership NHS Trust,19/05/23,NURSE - BAND 5 - AGENCY,Thornton Ward - Bradgate Unit,HCL NURSING,HNSI0001355,1962.96
Department of Health,Leicestershire Partnership NHS Trust,22/05/23,Healthcare Services / Recharges from Non-NHS Bodies,Children's Speech Therapy,LEIC COUNTY COUNCIL,500014959,-200000.00
Department of Health,Leicestershire Partnership NHS Trust,22/05/23,Crs_NHS_LT1y -Resus Inventory Supplied.,Balance Sheet Collection,SUPPLY CHAIN CO LTD,1124040241,42446.91
Department of Health,Leicestershire Partnership NHS Trust,22/05/23,Gas,"Beaumont Leys Health Centre (P94, LPT)",TOTAL GAS & POWER LTD,301518376/23,1668.08
Department of Health,Leicestershire Partnership NHS Trust,22/05/23,Gas,"Bennion Centre (including Forest Grange Day Unit) (P8, LPT)",TOTAL GAS & POWER LTD,301518376/23,10058.08
Department of Health,Leicestershire Partnership NHS Trust,22/05/23,Gas,"Bradgate Unit (including Glenvale day Unit) (P7, LPT)",TOTAL GAS & POWER LTD,301518376/23,35893.38
Department of Health,Leicestershire Partnership NHS Trust,22/05/23,Gas,Bridge Park Plaza - First Floor (LPT),TOTAL GAS & POWER LTD,301518376/23,3767.16
Department of Health,Leicestershire Partnership NHS Trust,22/05/23,Gas,"Bridge Park Road - Units 2 and 3 (P148, LPT)",TOTAL GAS & POWER LTD,301518376/23,626.98
Department of Health,Leicestershire Partnership NHS Trust,22/05/23,Gas,"Coalville Community Hospital (P138, LPT)",TOTAL GAS & POWER LTD,301518376/23,23555.68
Department of Health,Leicestershire Partnership NHS Trust,22/05/23,Gas,"Coalville Health Centre (P121, LPT)",TOTAL GAS & POWER LTD,301518376/23,1668.08
Department of Health,Leicestershire Partnership NHS Trust,22/05/23,Gas,"Evington Centre (P6, LPT)",TOTAL GAS & POWER LTD,301518376/23,3016.92
Department of Health,Leicestershire Partnership NHS Trust,22/05/23,Gas,"Farm Lodge (P34, LPT)",TOTAL GAS & POWER LTD,301518376/23,306.24
Department of Health,Leicestershire Partnership NHS Trust,22/05/23,Gas,"Feilding Palmer Hospital (Lutterworth) (P131, LPT)",TOTAL GAS & POWER LTD,301518376/23,4093.73
Department of Health,Leicestershire Partnership NHS Trust,22/05/23,Gas,"Frith Cottages 3 & 4 (P36, LPT)",TOTAL GAS & POWER LTD,301518376/23,337.16
Department of Health,Leicestershire Partnership NHS Trust,22/05/23,Gas,HIS,TOTAL GAS & POWER LTD,301518376/23,420.56
Department of Health,Leicestershire Partnership NHS Trust,22/05/23,Gas,"Hawthorne Centre - Coalville (P14, LPT)",TOTAL GAS & POWER LTD,301518376/23,1165.15
Department of Health,Leicestershire Partnership NHS Trust,22/05/23,Gas,"Hinckley and Bosworth Community Hospital (Sunnyside) (P133, LPT)",TOTAL GAS & POWER LTD,301518376/23,15387.76
Department of Health,Leicestershire Partnership NHS Trust,22/05/23,Gas,"Hynca Lodge (P33, LPT)",TOTAL GAS & POWER LTD,301518376/23,1006.96
Department of Health,Leicestershire Partnership NHS Trust,22/05/23,Gas,"LGH - Gwendolen House (P4, LPT)",TOTAL GAS & POWER LTD,301518376/23,5351.39
Department of Health,Leicestershire Partnership NHS Trust,22/05/23,Gas,"Loughborough Hospital (P136, LPT)",TOTAL GAS & POWER LTD,301518376/23,42531.88
Department of Health,Leicestershire Partnership NHS Trust,22/05/23,Gas,Mawson House (LPT),TOTAL GAS & POWER LTD,301518376/23,1339.64
Department of Health,Leicestershire Partnership NHS Trust,22/05/23,Gas,"Mett Centre (P49, LPT)",TOTAL GAS & POWER LTD,301518376/23,764.63
Department of Health,Leicestershire Partnership NHS Trust,22/05/23,Gas,"Narborough Health Centre (P117, LPT)",TOTAL GAS & POWER LTD,301518376/23,1333.31
Department of Health,Leicestershire Partnership NHS Trust,22/05/23,Gas,"Neville Centre - LGH (was DSC) (P147, LPT)",TOTAL GAS & POWER LTD,301518376/23,2612.18
Department of Health,Leicestershire Partnership NHS Trust,22/05/23,Gas,"OSL House (P54, LPT)",TOTAL GAS & POWER LTD,301518376/23,1731.82
Department of Health,Leicestershire Partnership NHS Trust,22/05/23,Gas,"Orchard Resource Centre (P15, LPT)",TOTAL GAS & POWER LTD,301518376/23,1853.58
Department of Health,Leicestershire Partnership NHS Trust,22/05/23,Gas,"Rutland Memorial Hospital (P134, LPT)",TOTAL GAS & POWER LTD,301518376/23,991.55
Department of Health,Leicestershire Partnership NHS Trust,22/05/23,Gas,"Shepshed Health Centre (P123, LPT)",TOTAL GAS & POWER LTD,301518376/23,1555.61
Department of Health,Leicestershire Partnership NHS Trust,22/05/23,Gas,"Springfield Road Health Centre (P92, LPT)",TOTAL GAS & POWER LTD,301518376/23,1321.20
Department of Health,Leicestershire Partnership NHS Trust,22/05/23,Gas,"Stewart House (P61, LPT)",TOTAL GAS & POWER LTD,301518376/23,9198.22
Department of Health,Leicestershire Partnership NHS Trust,22/05/23,Gas,"Swithland House - London Road 352 (P44, LPT)",TOTAL GAS & POWER LTD,301518376/23,2388.72
Department of Health,Leicestershire Partnership NHS Trust,22/05/23,Gas,"The Agnes Unit (AKA Assessment and Treatment Centre) (P85, LPT)",TOTAL GAS & POWER LTD,301518376/23,9966.46
Department of Health,Leicestershire Partnership NHS Trust,22/05/23,Gas,The Beacon,TOTAL GAS & POWER LTD,301518376/23,3491.00
Department of Health,Leicestershire Partnership NHS Trust,22/05/23,Gas,"The Cedars (P19, LPT)",TOTAL GAS & POWER LTD,301518376/23,727.37
Department of Health,Leicestershire Partnership NHS Trust,22/05/23,Gas,"The Grange 1 (P4, LPT)",TOTAL GAS & POWER LTD,301518376/23,706.76
Department of Health,Leicestershire Partnership NHS Trust,22/05/23,Gas,"The Grange 2 (P41, LPT)",TOTAL GAS & POWER LTD,301518376/23,380.43
Department of Health,Leicestershire Partnership NHS Trust,22/05/23,Gas,"The Willows - Cordelia Close (P22, LPT)",TOTAL GAS & POWER LTD,301518376/23,8735.86
Department of Health,Leicestershire Partnership NHS Trust,22/05/23,Gas,"Valentine Centre (P3, LPT)",TOTAL GAS & POWER LTD,301518376/23,4300.06
Department of Health,Leicestershire Partnership NHS Trust,22/05/23,Gas,"Westcotes Group -Westcotes House (P78, LPT)",TOTAL GAS & POWER LTD,301518376/23,2721.00
Department of Health,Leicestershire Partnership NHS Trust,22/05/23,Gas,"Winstanley Drive Health Centre (P8, LPT)",TOTAL GAS & POWER LTD,301518376/23,1483.46
Department of Health,Leicestershire Partnership NHS Trust,23/05/23,Healthcare Services / Recharges from Non-NHS Bodies,Adult Eating Disorder Collaborative,ELLERN MEDE MOORGATE,OTM0627,36000.00
Department of Health,Leicestershire Partnership NHS Trust,24/05/23,Services / Recharges from NHS Trusts,Inter Unit I & E Distribution,UHL NHS TRUST (RWE),L0270961,27977.02
Department of Health,Leicestershire Partnership NHS Trust,25/05/23,Lease Rents (IFRS16),"OSL House (P54, LPT)",CABOT TRUSTEES LTD,073,41700.00
Department of Health,Leicestershire Partnership NHS Trust,25/05/23,DIRECTOR,Business Development,NORTHAMPTONSHIRE HC NHS FT (RP1),5153964,5239.00
Department of Health,Leicestershire Partnership NHS Trust,25/05/23,Admin & Clerical - Band 5,Chief Executives Office,NORTHAMPTONSHIRE HC NHS FT (RP1),5153964,1230.56
Department of Health,Leicestershire Partnership NHS Trust,25/05/23,Admin & Clerical - Band 6,Chief Executives Office,NORTHAMPTONSHIRE HC NHS FT (RP1),5153964,1903.14
Department of Health,Leicestershire Partnership NHS Trust,25/05/23,CHIEF EXECUTIVE'S REMUNERATION,Chief Executives Office,NORTHAMPTONSHIRE HC NHS FT (RP1),5153964,17482.67
Department of Health,Leicestershire Partnership NHS Trust,25/05/23,DIRECTOR,Chief Executives Office,NORTHAMPTONSHIRE HC NHS FT (RP1),5153964,29674.83
Department of Health,Leicestershire Partnership NHS Trust,25/05/23,Senior Manager - Band 8A,Chief Nurse,NORTHAMPTONSHIRE HC NHS FT (RP1),5153964,5040.02
Department of Health,Leicestershire Partnership NHS Trust,25/05/23,Senior Manager - Band 8C,Director of Finance,NORTHAMPTONSHIRE HC NHS FT (RP1),5153964,3705.92
Department of Health,Leicestershire Partnership NHS Trust,25/05/23,Senior Manager - Band 8D,HIS Management Team,NORTHAMPTONSHIRE HC NHS FT (RP1),5153964,6055.03
Department of Health,Leicestershire Partnership NHS Trust,25/05/23,Computer License  Fees,Finance Department,VERSION 1,INVSOL017550,38084.10
Department of Health,Leicestershire Partnership NHS Trust,25/05/23,Telephone equipment,"Bradgate Unit (including Glenvale day Unit) (P7, LPT)",VIRGIN MEDIA BUSINESS,60050911,15717.87
Department of Health,Leicestershire Partnership NHS Trust,25/05/23,Telephone equipment,"Frith Cottages 3 & 4 (P36, LPT)",VIRGIN MEDIA BUSINESS,60050911,15717.88
Department of Health,Leicestershire Partnership NHS Trust,30/05/23,Med Trainees - FY1,Medical Trainees,UHL NHS TRUST (RWE),L0271119,28301.57
Department of Health,Leicestershire Partnership NHS Trust,30/05/23,Med Trainees - FY1,Medical Trainees,UHL NHS TRUST (RWE),L0271120,28301.57
Department of Health,Leicestershire Partnership NHS Trust,30/05/23,NURSE - BAND 2 - AGENCY,Beechwood Ward,HCL NURSING,HNSI0001362,5560.38
Department of Health,Leicestershire Partnership NHS Trust,30/05/23,NURSE - BAND 5 - AGENCY,Beechwood Ward,HCL NURSING,HNSI0001362,5096.65
Department of Health,Leicestershire Partnership NHS Trust,30/05/23,NURSE - BAND 2 - AGENCY,CHS Surge Ward,HCL NURSING,HNSI0001362,9137.20
Department of Health,Leicestershire Partnership NHS Trust,30/05/23,NURSE - BAND 5 - AGENCY,CHS Surge Ward,HCL NURSING,HNSI0001362,7162.65
Department of Health,Leicestershire Partnership NHS Trust,30/05/23,NURSE - BAND 5 - AGENCY,City Planned Care - East,HCL NURSING,HNSI0001362,11754.29
Department of Health,Leicestershire Partnership NHS Trust,30/05/23,NURSE - BAND 5 - AGENCY,City Planned Care - West,HCL NURSING,HNSI0001362,7873.71
Department of Health,Leicestershire Partnership NHS Trust,30/05/23,NURSE - BAND 2 - AGENCY,Clarendon Ward,HCL NURSING,HNSI0001362,4020.69
Department of Health,Leicestershire Partnership NHS Trust,30/05/23,NURSE - BAND 5 - AGENCY,Clarendon Ward,HCL NURSING,HNSI0001362,467.53
Department of Health,Leicestershire Partnership NHS Trust,30/05/23,NURSE - BAND 2 - AGENCY,Coalville Snibston Ward,HCL NURSING,HNSI0001362,8031.31
Department of Health,Leicestershire Partnership NHS Trust,30/05/23,NURSE - BAND 5 - AGENCY,Coalville Snibston Ward,HCL NURSING,HNSI0001362,779.38
Department of Health,Leicestershire Partnership NHS Trust,30/05/23,NURSE - BAND 2 - AGENCY,Coalville Ward 2,HCL NURSING,HNSI0001362,4824.68
Department of Health,Leicestershire Partnership NHS Trust,30/05/23,NURSE - BAND 5 - AGENCY,Coalville Ward 2,HCL NURSING,HNSI0001362,1750.84
Department of Health,Leicestershire Partnership NHS Trust,30/05/23,NURSE - BAND 2 - AGENCY,Dalgliesh Ward,HCL NURSING,HNSI0001362,8802.42
Department of Health,Leicestershire Partnership NHS Trust,30/05/23,NURSE - BAND 5 - AGENCY,Dalgliesh Ward,HCL NURSING,HNSI0001362,3492.63
Department of Health,Leicestershire Partnership NHS Trust,30/05/23,NURSE - BAND 5 - AGENCY,"East Planned Care - Oadby,Wigston & Harborough",HCL NURSING,HNSI0001362,943.25
Department of Health,Leicestershire Partnership NHS Trust,30/05/23,NURSE - BAND 2 - AGENCY,H&B Comm Hosp East Ward,HCL NURSING,HNSI0001362,5182.68
Department of Health,Leicestershire Partnership NHS Trust,30/05/23,NURSE - BAND 5 - AGENCY,H&B Comm Hosp East Ward,HCL NURSING,HNSI0001362,12454.95
Department of Health,Leicestershire Partnership NHS Trust,30/05/23,NURSE - BAND 2 - AGENCY,H&B Comm Hosp North Ward,HCL NURSING,HNSI0001362,3273.30
Department of Health,Leicestershire Partnership NHS Trust,30/05/23,NURSE - BAND 5 - AGENCY,H&B Comm Hosp North Ward,HCL NURSING,HNSI0001362,2677.90
Department of Health,Leicestershire Partnership NHS Trust,30/05/23,NURSE - BAND 2 - AGENCY,Lough Swithland Ward,HCL NURSING,HNSI0001362,2837.42
Department of Health,Leicestershire Partnership NHS Trust,30/05/23,NURSE - BAND 5 - AGENCY,Lough Swithland Ward,HCL NURSING,HNSI0001362,933.70
Department of Health,Leicestershire Partnership NHS Trust,30/05/23,NURSE - BAND 2 - AGENCY,Rutland Ward Nursing,HCL NURSING,HNSI0001362,1505.18
Department of Health,Leicestershire Partnership NHS Trust,30/05/23,NURSE - BAND 5 - AGENCY,Rutland Ward Nursing,HCL NURSING,HNSI0001362,1348.62
Department of Health,Leicestershire Partnership NHS Trust,30/05/23,NURSE - BAND 2 - AGENCY,St Lukes Stroke Ward,HCL NURSING,HNSI0001362,7172.29
Department of Health,Leicestershire Partnership NHS Trust,30/05/23,NURSE - BAND 5 - AGENCY,St Lukes Stroke Ward,HCL NURSING,HNSI0001362,1680.52
Department of Health,Leicestershire Partnership NHS Trust,30/05/23,NURSE - BAND 2 - AGENCY,St Lukes Ward 3,HCL NURSING,HNSI0001362,2512.43
Department of Health,Leicestershire Partnership NHS Trust,30/05/23,NURSE - BAND 5 - AGENCY,St Lukes Ward 3,HCL NURSING,HNSI0001362,1789.89
Department of Health,Leicestershire Partnership NHS Trust,30/05/23,Crs_NHS_LT1y -Resus Inventory Supplied.,Balance Sheet Collection,SUPPLY CHAIN CO LTD,1124046907,39331.73
Department of Health,Leicestershire Partnership NHS Trust,30/05/23,Lease Rents (IFRS16),Bridge Park Plaza - First Floor (LPT),FISHER HARG PROCT LTD,832605,80507.52
Department of Health,Leicestershire Partnership NHS Trust,30/05/23,Water & Sewerage Charges,"Beaumont Leys Health Centre (P94, LPT)",WATER PLUS,0865005329/INV02069870,209.21
Department of Health,Leicestershire Partnership NHS Trust,30/05/23,Water & Sewerage Charges,Bridge Park Road (Unit C18) (LPT),WATER PLUS,0865005329/INV02069870,78.37
Department of Health,Leicestershire Partnership NHS Trust,30/05/23,Water & Sewerage Charges,"Bridge Park Road - Units 2 and 3 (P148, LPT)",WATER PLUS,0865005329/INV02069870,476.49
Department of Health,Leicestershire Partnership NHS Trust,30/05/23,Water & Sewerage Charges,"Coalville Community Hospital (P138, LPT)",WATER PLUS,0865005329/INV02069870,3989.10
Department of Health,Leicestershire Partnership NHS Trust,30/05/23,Water & Sewerage Charges,"Coalville Health Centre (P121, LPT)",WATER PLUS,0865005329/INV02069870,280.47
Department of Health,Leicestershire Partnership NHS Trust,30/05/23,Water & Sewerage Charges,"Evington Centre (P6, LPT)",WATER PLUS,0865005329/INV02069870,1540.65
Department of Health,Leicestershire Partnership NHS Trust,30/05/23,Water & Sewerage Charges,"Feilding Palmer Hospital (Lutterworth) (P131, LPT)",WATER PLUS,0865005329/INV02069870,35.28
Department of Health,Leicestershire Partnership NHS Trust,30/05/23,Water & Sewerage Charges,HIS,WATER PLUS,0865005329/INV02069870,77.90
Department of Health,Leicestershire Partnership NHS Trust,30/05/23,Water & Sewerage Charges,"Hinckley and Bosworth Community Hospital (Sunnyside) (P133, LPT)",WATER PLUS,0865005329/INV02069870,1773.69
Department of Health,Leicestershire Partnership NHS Trust,30/05/23,Water & Sewerage Charges,"Hynca Lodge (P33, LPT)",WATER PLUS,0865005329/INV02069870,209.83
Department of Health,Leicestershire Partnership NHS Trust,30/05/23,Water & Sewerage Charges,Linnaeus Nursery - Cordelia Close,WATER PLUS,0865005329/INV02069870,43.08
Department of Health,Leicestershire Partnership NHS Trust,30/05/23,Water & Sewerage Charges,"Loughborough Hospital (P136, LPT)",WATER PLUS,0865005329/INV02069870,3200.31
Department of Health,Leicestershire Partnership NHS Trust,30/05/23,Water & Sewerage Charges,"Narborough Health Centre (P117, LPT)",WATER PLUS,0865005329/INV02069870,93.42
Department of Health,Leicestershire Partnership NHS Trust,30/05/23,Water & Sewerage Charges,"OSL House (P54, LPT)",WATER PLUS,0865005329/INV02069870,307.19
Department of Health,Leicestershire Partnership NHS Trust,30/05/23,Water & Sewerage Charges,"Orchard Resource Centre (P15, LPT)",WATER PLUS,0865005329/INV02069870,427.61
Department of Health,Leicestershire Partnership NHS Trust,30/05/23,Water & Sewerage Charges,"Prince Philip House (P96, LPT)",WATER PLUS,0865005329/INV02069870,235.92
Department of Health,Leicestershire Partnership NHS Trust,30/05/23,Water & Sewerage Charges,Rothesay -  London Road 352A (LPT),WATER PLUS,0865005329/INV02069870,80.07
Department of Health,Leicestershire Partnership NHS Trust,30/05/23,Water & Sewerage Charges,"Rutland Memorial Hospital (P134, LPT)",WATER PLUS,0865005329/INV02069870,85867.38
Department of Health,Leicestershire Partnership NHS Trust,30/05/23,Water & Sewerage Charges,"Shepshed Health Centre (P123, LPT)",WATER PLUS,0865005329/INV02069870,313.38
Department of Health,Leicestershire Partnership NHS Trust,30/05/23,Water & Sewerage Charges,"Springfield Road Health Centre (P92, LPT)",WATER PLUS,0865005329/INV02069870,273.80
Department of Health,Leicestershire Partnership NHS Trust,30/05/23,Water & Sewerage Charges,"Stewart House (P61, LPT)",WATER PLUS,0865005329/INV02069870,1168.33
Department of Health,Leicestershire Partnership NHS Trust,30/05/23,Water & Sewerage Charges,"Swithland House - London Road 352 (P44, LPT)",WATER PLUS,0865005329/INV02069870,113.46
Department of Health,Leicestershire Partnership NHS Trust,30/05/23,Water & Sewerage Charges,"The Agnes Unit (AKA Assessment and Treatment Centre) (P85, LPT)",WATER PLUS,0865005329/INV02069870,858.10
Department of Health,Leicestershire Partnership NHS Trust,30/05/23,Water & Sewerage Charges,"The Cedars (P19, LPT)",WATER PLUS,0865005329/INV02069870,104.62
Department of Health,Leicestershire Partnership NHS Trust,30/05/23,Water & Sewerage Charges,"The Grange 1 (P4, LPT)",WATER PLUS,0865005329/INV02069870,51.67
Department of Health,Leicestershire Partnership NHS Trust,30/05/23,Water & Sewerage Charges,"The Grange 2 (P41, LPT)",WATER PLUS,0865005329/INV02069870,78.39
Department of Health,Leicestershire Partnership NHS Trust,30/05/23,Water & Sewerage Charges,"The Willows - Cordelia Close (P22, LPT)",WATER PLUS,0865005329/INV02069870,1463.03
Department of Health,Leicestershire Partnership NHS Trust,30/05/23,Water & Sewerage Charges,"Westcotes Group -Westcotes House (P78, LPT)",WATER PLUS,0865005329/INV02069870,154.02
Department of Health,Leicestershire Partnership NHS Trust,30/05/23,Water & Sewerage Charges,Westcotes Group – Artemis House,WATER PLUS,0865005329/INV02069870,210.07
